Workbook

Sheet Introduction

Sheet Input
X2: 0.66
X3: 0.95 | AF3: 306.2862938 | AO3: =L2*Input!$E$5/Input!$E$7 -> 0 | AY3: 359 | AZ3: 0.003965386763
A4: Input: Well ID | B4: X (Easting) no two identical | C4: Y (Northing) no two identical | D4: Z (Hydraulic Head) | E4: K (L/T) | F4: Summary of Output | I4: +/- on Head (L) | J4: Confidence Level | K4: Base:Height constraint Low High | M4: max base or height (L) | N4: Total Discharges Q (L3/(LT) Jtot(M/LT) | X4: 0.99
A5: 18HD07 | B5: 1520940.697 | C5: 658569.676 | D5: 774.75 | E5: 2500 | G5: =Output!O1 -> Gradient | H5: =Output!P1 -> Direction | I5: 0.01 | J5: 0.66 | K5: 0.2 | L5: 8 | M5: 1000000000 | N5: 3659.003484 | O5: 0.1240753797
A6: 18HD05(65) | B6: 1520575.008 | C6: 658783.629 | D6: 774.42 | E6: n | F6: =Output!N2 -> Avg | G6: =Output!O2 -> 0.00160170353 | H6: =Output!P2 -> 184.6153306 | I6: <--measured counterclockwise from x axis | N6: ft^3/d/ft | O6: kg/m/yr
A7: MW108S | B7: 1520339.403 | C7: 659446.14 | D7: 774.18 | E7: 0.3 | F7: =Output!N3 -> StDev | G7: =Output!O3 -> 0.0004207305668 | H7: =Output!P3 -> 24.34758454
A8: HR6 | B8: 1521303.632 | C8: 658812.7 | D8: 775.51 | E8: Speed (L/T)
A9: HR13 | B9: 1521141.023 | C9: 659121.229 | D9: 775.41 | E9: =E5*G9*1/E7 -> 12.24688956 | F9: =Output!N5 -> All Wells | G9: =Output!O5 -> 0.001469626747 | H9: =Output!P5 -> 174.8099222
A10: HAS | B10: 1520635.464 | C10: 660188.352 | D10: 773.74
A11: 18HD06 | B11: 1521122.177 | C11: 658700.785 | D11: 775.19
A12: 18HD08(47) | B12: 1520895.911 | C12: 659059.255 | D12: 774.91
A13: 18HD09(62) | B13: 1520790.619 | C13: 659265.209 | D13: 774.89
A14: HAH | B14: 1520810.248 | C14: 659454.585 | D14: 775.01
A15: 18HD03(57) | B15: 1521786.139 | C15: 659709.43 | D15: 776.52
A16: MW125S | B16: 1521609.98 | C16: 659067.802 | D16: 776.01
A17: MW133S | B17: 1522898.573 | C17: 659399.937 | D17: 777.43
A18: MW132S | B18: 1522337.139 | C18: 660004.371 | D18: 777.06
N23: Vector view
N24: Time of travel (T)
N25: 5
N26: Rotate Direction
N27: Direction (o) | O27: c-clockwise
N28: 0
A51: x | B51: y | C51: Conc. | D51: Origin x | E51: Origin y | F51: Origin H | G51: norm x | H51: norm y | I51: norm H | J51: grad | K51: q (L/T) | L51: J (M/L^2T) | M51: Seg L (L) | N51: Units Conc | O51: Mol. Wt.
A52: 1000 | B52: 500 | C52: 1 | D52: 0 | E52: 0 | F52: 2539.864443 | G52: 0 | H52: 0 | I52: 2539.864443 | L52: 1.115264262 | N52: TRUE
A53: 1000 | B53: 1500 | D53: 0 | E53: 1000 | F53: 2539.731501 | G53: -100 | H53: 0 | I53: 2539.718083 | J53: -0.001463601394 | K53: 3.659003484 | M53: 946.6847416 | N53: FALSE
A54: 1000 | B54: 1500 | C54: 1 | N54: FALSE
N55: FALSE
N56: FALSE
N57: FALSE
N58: FALSE
N59: FALSE
N60: FALSE
N61: TRUE
N62: FALSE
N63: FALSE
N64: TRUE
N65: FALSE

Sheet Output
A1: Input: Well ID | B1: X (Easting) (L) | C1: Y (Northing) (L) | D1: Z (Hydraulic Head) (L) | E1: +/- on Head (L) | F1: Adjusted X-Coordinate | G1: Adjusted Y-Coordinate | I1: Well A | J1: Well B | K1: Well C | L1: Gradient | M1: Flow Direction from X Direction | O1: Gradient | P1: Direction | Q1: AB/BC | R1: AC/BC | S1: AC/AB | T1: AB/H1 | U1: BC/H2 | V1: AC/H3 | W1: Max DWL (L) | Z1: Gradient Bin Range | AF1: Rotated Direction (o) ---> | AG1: =Input!N28 -> 0 | AH1: Direction Bin Range | AO1: Velocity (m/d) | AR1: Velocity Bin Range | AY1: Estimator Area | AZ1: gradient
A2: 18HD07 | B2: 1520940.697 | C2: 658569.676 | D2: 774.75 | E2: 107 | F2: 601.294 | G2: 0 | I2: 18HD07 | J2: 18HD05(65) | K2: MW108S | L2: 0.0008734258007 | M2: 176.5735656 | N2: Avg | O2: =AVERAGE(L2:L200) -> 0.00160170353 | P2: =AVERAGE(M2:M200) -> 184.6153306 | Q2: 0.6025385264 | R2: 1.511601463 | S2: 2.508721678 | T2: 0.9355782238 | U2: 2.576976528 | V2: 5.888234126 | W2: 57 | Y2: max | Z2: =MAX(L2:L1000) -> 0.004484014262 | AF2: 176.5735656 | AG2: max | AH2: =IF(MAX(AF2:AF1000)+45<360, MAX(AF2:AF1000)+45,MAX(AF2:AF1000)) -> 282.8041295 | AO2: =L2*Input!$E$5/Input!$E$7 -> 7.278548339 | AQ2: max | AR2: =MAX(AO2:AO1000) -> 37.36678551 | AY2: 95932.29426 | AZ2: 0.0008734258007
A3: 18HD05(65) | B3: 1520575.008 | C3: 658783.629 | D3: 774.42 | E3: n | F3: 235.605 | G3: 213.953 | I3: 18HD07 | J3: 18HD05(65) | K3: HR6 | L3: 0.001740120593 | M3: 213.0791833 | N3: StDev | O3: =STDEV(L2:L200) -> 0.0004207305668 | P3: =STDEV(M2:M200) -> 24.34758454 | Q3: 0.5810166711 | R3: 0.5989911029 | S3: 1.030936172 | T3: 1.077960131 | U3: 3.193195518 | V3: 1.14568771 | W3: 109 | Y3: min | Z3: =MIN(L2:L1000) -> 0.0005613856916 | AF3: 213.0791833 | AG3: min | AH3: =IF(MIN(AF2:AF1000)-45<0,MIN(AF2:AF1000),MIN(AF2:AF1000)-45) -> 12.021013 | AO3: =L3*Input!$E$5/Input!$E$7 -> 14.50100494 | AQ3: min | AR3: =MIN(AO2:AO1000) -> 4.678214096 | AY3: 83261.1178 | AZ3: 0.001740120593
A4: MW108S | B4: 1520339.403 | C4: 659446.14 | D4: 774.18 | E4: 0.35 | F4: 0 | G4: 876.464 | I4: 18HD07 | J4: 18HD05(65) | K4: HR13 | L4: 0.001503424641 | M4: 208.4660668 | Q4: 0.6428641128 | R4: 0.8903816941 | S4: 1.385023174 | T4: 0.7339972852 | U4: 1.776053684 | V4: 1.40801906 | W4: 99 | AF4: 208.4660668 | AO4: =L4*Input!$E$5/Input!$E$7 -> 12.52853867 | AY4: 122278.6068 | AZ4: 0.001503424641
A5: HR6 | B5: 1521303.632 | C5: 658812.7 | D5: 775.51 | E5: Speed (L/T) | F5: 964.229 | G5: 243.024 | I5: 18HD07 | J5: 18HD05(65) | K5: HAS | L5: 0.0007905474728 | M5: 139.8180226 | N5: All Wells | O5: 0.001469626747 | P5: 174.8099222 | Q5: 0.3013317789 | R5: 1.171533497 | S5: 3.887852458 | T5: 0.3408570092 | U5: 3.753897052 | V5: 5.152188923 | W5: 101 | Z5: =$Z$2 -> 0.004484014262 | AB5: Bin | AC5: Frequency | AF5: 139.8180226 | AH5: =$AH$2 -> 282.8041295 | AI5: =AK15 -> 0 | AJ5: Bin | AK5: Frequency | AO5: =L5*Input!$E$5/Input!$E$7 -> 6.587895607 | AR5: =AR2 -> 37.36678551 | AT5: Bin | AU5: Frequency | AY5: 263313.2459 | AZ5: 0.0007905474728
A6: HR13 | B6: 1521141.023 | C6: 659121.229 | D6: 775.41 | E6: 0 | F6: 801.62 | G6: 551.553 | I6: 18HD07 | J6: 18HD05(65) | K6: 18HD06 | L6: 0.001965361144 | M6: 216.3218073 | Q6: 0.765586776 | R6: 0.4045593525 | S6: 0.5284304342 | T6: 2.068658345 | U6: 3.529392212 | V6: 0.5776495163 | W6: 77 | Z6: =Z5-($Z$2-$Z$3)/9 -> 0.004048166643 | AB6: 0.0005613856916 | AC6: 0 | AF6: 216.3218073 | AH6: =AH5-($AH$2-$AH$3)/9 -> 252.7171166 | AI6: =AK14 -> 4 | AJ6: 12.021013 | AK6: 0 | AO6: =L6*Input!$E$5/Input!$E$7 -> 16.37800953 | AR6: =AR5-($AR$2-$AR$3)/9 -> 33.73472202 | AT6: 0.1716236257 | AU6: 0 | AY6: 43386.65477 | AZ6: 0.001965361144
A7: HAS | B7: 1520635.464 | C7: 660188.352 | D7: 773.74 | F7: 296.061 | G7: 1618.676 | I7: 18HD07 | J7: 18HD05(65) | K7: 18HD08(47) | L7: 0.001233750574 | M7: 200.5219257 | Q7: 1.001552047 | R7: 1.162166727 | S7: 1.160365785 | T7: 1.059325363 | U7: 1.056044758 | V7: 1.426327317 | W7: 49 | Z7: =Z6-($Z$2-$Z$3)/9 -> 0.003612319024 | AB7: 0.0009972333105 | AC7: 8 | AF7: 200.5219257 | AH7: =AH6-($AH$2-$AH$3)/9 -> 222.6301036 | AI7: =AK13 -> 129 | AJ7: 42.10802595 | AK7: 0 | AO7: =L7*Input!$E$5/Input!$E$7 -> 10.28125478 | AR7: =AR6-($AR$2-$AR$3)/9 -> 30.10265853 | AT7: 0.3048684692 | AU7: 8 | AY7: 84725.77794 | AZ7: 0.001233750574
A8: 18HD06 | B8: 1521122.177 | C8: 658700.785 | D8: 775.19 | F8: 782.774 | G8: 131.109 | I8: 18HD07 | J8: 18HD05(65) | K8: 18HD09(62) | L8: 0.00125244537 | M8: 201.2147408 | Q8: 0.8029658563 | R8: 1.348525301 | S8: 1.679430439 | T8: 0.8077080387 | U8: 1.25273799 | V8: 2.278129701 | W8: 47 | Z8: 0.003176471405 | AB8: 0.001433080929 | AC8: 86 | AF8: 201.2147408 | AH8: 192.5430907 | AI8: =AK12 -> 101 | AJ8: 72.1950389 | AK8: 2 | AO8: =L8*Input!$E$5/Input!$E$7 -> 10.43704475 | AR8: 26.47059504 | AT8: 0.4381133127 | AU8: 86 | AY8: 111119.5645 | AZ8: 0.00125244537
A9: 18HD08(47) | B9: 1520895.911 | C9: 659059.255 | D9: 774.91 | F9: 556.508 | G9: 489.579 | I9: 18HD07 | J9: 18HD05(65) | K9: HAH | L9: 0.001265112413 | M9: 201.6689009 | Q9: 0.5958931258 | R9: 1.258049866 | S9: 2.111200501 | T9: 0.6070661864 | U9: 1.70961883 | V9: 2.70579571 | W9: 59 | Z9: 0.002740623786 | AB9: 0.001868928548 | AC9: 130 | AF9: 201.6689009 | AH9: 162.4560777 | AI9: =AK11 -> 31 | AJ9: 102.2820518 | AK9: 2 | AO9: =L9*Input!$E$5/Input!$E$7 -> 10.54260344 | AR9: 22.83853155 | AT9: 0.5713581562 | AU9: 130 | AY9: 147845.7662 | AZ9: 0.001265112413
A10: 18HD09(62) | B10: 1520790.619 | C10: 659265.209 | D10: 774.89 | F10: 451.216 | G10: 695.533 | I10: 18HD07 | J10: 18HD05(65) | K10: 18HD03(57) | L10: 0.001405206561 | M10: 206.0076945 | Q10: 0.2779229872 | R10: 0.9308857798 | S10: 3.349437876 | T10: 0.3003350037 | U10: 3.888275363 | V10: 3.369378543 | W10: 210 | Z10: 0.002304776167 | AB10: 0.002304776167 | AC10: 41 | AF10: 206.0076945 | AH10: 132.3690648 | AI10: =AK10 -> 5 | AJ10: 132.3690648 | AK10: 5 | AO10: =L10*Input!$E$5/Input!$E$7 -> 11.71005467 | AR10: 19.20646806 | AT10: 0.7046029997 | AU10: 41 | AY10: 298840.1764 | AZ10: 0.001405206561
A11: HAH | B11: 1520810.248 | C11: 659454.585 | D11: 775.01 | F11: 470.845 | G11: 884.909 | I11: 18HD07 | J11: 18HD05(65) | K11: MW125S | L11: 0.00152406308 | M11: 208.9348649 | Q11: 0.3947535595 | R11: 0.7773467945 | S11: 1.969195149 | T11: 0.5517195514 | U11: 3.540513584 | V11: 2.1394192 | W11: 159 | Z11: 0.001868928548 | AB11: 0.002740623786 | AC11: 6 | AF11: 208.9348649 | AH11: 102.2820518 | AI11: =AK9 -> 2 | AJ11: 162.4560777 | AK11: 31 | AO11: =L11*Input!$E$5/Input!$E$7 -> 12.70052567 | AR11: 15.57440457 | AT11: 0.8378478432 | AU11: 6 | AY11: 162677.1523 | AZ11: 0.00152406308
A12: 18HD03(57) | B12: 1521786.139 | C12: 659709.43 | D12: 776.52 | F12: 1446.736 | G12: 1139.754 | I12: 18HD07 | J12: 18HD05(65) | K12: MW133S | L12: 0.00126061729 | M12: 201.5091021 | Q12: 0.1762458967 | R12: 0.8846596165 | S12: 5.019462201 | T12: 0.2484452014 | U12: 7.998205966 | V12: 6.259577045 | W12: 301 | Z12: 0.001433080929 | AB12: 0.003176471405 | AC12: 0 | AF12: 201.5091021 | AH12: 72.1950389 | AI12: =AK8 -> 2 | AJ12: 192.5430907 | AK12: 101 | AO12: =L12*Input!$E$5/Input!$E$7 -> 10.50514409 | AR12: 11.94234108 | AT12: 0.9710926867 | AU12: 0 | AY12: 361255.3793 | AZ12: 0.00126061729
A13: MW125S | B13: 1521609.98 | C13: 659067.802 | D13: 776.01 | F13: 1270.577 | G13: 498.126 | I13: 18HD07 | J13: 18HD05(65) | K13: MW132S | L13: 0.001264299391 | M13: 201.6401084 | Q13: 0.1976422286 | R13: 0.9339589829 | S13: 4.725503196 | T13: 0.2179971479 | U13: 5.580734053 | V13: 4.867959249 | W13: 264 | Z13: 0.0009972333105 | AB13: 0.003612319024 | AC13: 1 | AF13: 201.6401084 | AH13: 42.10802595 | AI13: =AK7 -> 0 | AJ13: 222.6301036 | AK13: 129 | AO13: =L13*Input!$E$5/Input!$E$7 -> 10.53582826 | AR13: 8.310277587 | AT13: 1.10433753 | AU13: 1 | AY13: 411712.5675 | AZ13: 0.001264299391
A14: MW133S | B14: 1522898.573 | C14: 659399.937 | D14: 777.43 | F14: 2559.17 | G14: 830.261 | I14: 18HD07 | J14: MW108S | K14: HR6 | L14: 0.001815080784 | M14: 197.2671616 | Q14: 0.9213052879 | R14: 0.3786019611 | S14: 0.4109408315 | T14: 2.433594705 | U14: 2.867088667 | V14: 0.4109668981 | W14: 133 | Z14: 0.0005613856916 | AB14: 0.004048166643 | AC14: 1 | AF14: 197.2671616 | AH14: 12.021013 | AI14: =AK6 -> 0 | AJ14: 252.7171166 | AK14: 4 | AO14: =L14*Input!$E$5/Input!$E$7 -> 15.1256732 | AR14: 4.678214096 | AT14: 1.237582374 | AU14: 1 | AY14: 232114.1674 | AZ14: 0.001815080784
A15: MW132S | B15: 1522337.139 | C15: 660004.371 | D15: 777.06 | F15: 1997.736 | G15: 1434.695 | I15: 18HD07 | J15: MW108S | K15: HR13 | L15: 0.001846379732 | M15: 197.5672885 | Q15: 1.228831084 | R15: 0.6784170371 | S15: 0.5520832327 | T15: 2.227306941 | U15: 1.475012476 | V15: 0.6788740144 | W15: 123 | AB15: 0.004484014262 | AC15: 1 | AF15: 197.5672885 | AJ15: 282.8041295 | AK15: 0 | AO15: =L15*Input!$E$5/Input!$E$7 -> 15.38649777 | AT15: 1.370827217 | AU15: 1 | AY15: 253612.0184 | AZ15: 0.001846379732
I16: 18HD07 | J16: MW108S | K16: HAS | L16: 0.0006162543431 | M16: 94.9351359 | Q16: 1.330145145 | R16: 2.06137178 | S16: 1.549734469 | T16: 1.600714858 | U16: 0.9047235787 | V16: 3.844399938 | W16: 101 | AB16: More | AC16: 0 | AF16: 94.9351359 | AJ16: More | AK16: 0 | AO16: =L16*Input!$E$5/Input!$E$7 -> 5.135452859 | AT16: More | AU16: 0 | AY16: 352887.2153 | AZ16: 0.0006162543431
I17: 18HD07 | J17: MW108S | K17: 18HD06 | L17: 0.002050301397 | M17: 199.2893875 | Q17: 0.9833650417 | R17: 0.2071333861 | S17: 0.2106373293 | T17: 4.748902226 | U17: 4.910929479 | V17: 0.2106996952 | W17: 101 | AF17: 199.2893875 | AO17: =L17*Input!$E$5/Input!$E$7 -> 17.08584497 | AY17: 118947.8709 | AZ17: 0.002050301397
I18: 18HD07 | J18: MW108S | K18: 18HD08(47) | L18: 0.00171133444 | M18: 196.189769 | Q18: 1.568206897 | R18: 0.7253469539 | S18: 0.4625326896 | T18: 4.428151342 | U18: 1.800593742 | V18: 0.9473431508 | W18: 73 | AF18: 196.189769 | AO18: =L18*Input!$E$5/Input!$E$7 -> 14.26112033 | AY18: 127563.7993 | AZ18: 0.00171133444
I19: 18HD07 | J19: MW108S | K19: 18HD09(62) | L19: 0.00190524206 | M19: 198.1038266 | Q19: 2.186395728 | R19: 1.463653609 | S19: 0.6694367311 | T19: 3.94075731 | U19: 0.8243699449 | V19: 1.766032801 | W19: 71 | AF19: 198.1038266 | AO19: =L19*Input!$E$5/Input!$E$7 -> 15.87701717 | AY19: 143340.9278 | AZ19: 0.00190524206
I20: 18HD07 | J20: MW108S | K20: HAH | L20: 0.001837809851 | M20: 197.4861753 | Q20: 2.257054997 | R20: 1.899411833 | S20: 0.8415443289 | T20: 2.70431051 | U20: 0.5308505514 | V20: 1.915184205 | W20: 83 | AF20: 197.4861753 | AO20: =L20*Input!$E$5/Input!$E$7 -> 15.31508209 | AY20: 208878.31 | AZ20: 0.001837809851
I21: 18HD07 | J21: MW108S | K21: 18HD03(57) | L21: 0.001596231832 | M21: 194.8208971 | Q21: 0.7228118737 | R21: 0.9650386841 | S21: 1.335117365 | T21: 0.7920651018 | U21: 1.516038822 | V21: 1.411886442 | W21: 234 | AF21: 194.8208971 | AO21: =L21*Input!$E$5/Input!$E$7 -> 13.30193193 | AY21: 713163.3594 | AZ21: 0.001596231832
I22: 18HD07 | J22: MW108S | K22: MW125S | L22: 0.001623172232 | M22: 195.1597428 | Q22: 0.8017548487 | R22: 0.629329181 | S22: 0.7849396633 | T22: 1.274929202 | U22: 1.983366066 | V22: 0.7855224798 | W22: 183 | AF22: 195.1597428 | AO22: =L22*Input!$E$5/Input!$E$7 -> 13.52643526 | AY22: 443061.3152 | AZ22: 0.001623172232
I23: 18HD07 | J23: MW108S | K23: MW133S | L23: 0.001293466376 | M23: 189.9577299 | Q23: 0.4152599488 | R23: 0.8308540699 | S23: 2.000804731 | T23: 0.5099872861 | U23: 2.957462573 | V23: 2.041591084 | W23: 325 | AF23: 189.9577299 | AO23: =L23*Input!$E$5/Input!$E$7 -> 10.77888647 | AY23: 1107619.394 | AZ23: 0.001293466376
I24: 18HD07 | J24: MW108S | K24: MW132S | L24: 0.001391547884 | M24: 191.7846872 | Q24: 0.5124198284 | R24: 0.9652093167 | S24: 1.883629913 | T24: 0.5414267744 | U24: 2.061996269 | V24: 1.921015574 | W24: 288 | AF24: 191.7846872 | AO24: =L24*Input!$E$5/Input!$E$7 -> 11.59623237 | AY24: 1043302.318 | AZ24: 0.001391547884
I25: 18HD07 | J25: HR6 | K25: HR13 | L25: 0.001802776203 | M25: 198.6395188 | Q25: 1.252407391 | R25: 1.682561255 | S25: 1.343461614 | T25: 1.259341309 | U25: 0.8028828953 | V25: 2.272971413 | W25: 76 | AF25: 198.6395188 | AO25: =L25*Input!$E$5/Input!$E$7 -> 15.02313503 | AY25: 75746.93112 | AZ25: 0.001802776203
I26: 18HD07 | J26: HR6 | K26: HAS | L26: 0.002239501031 | M26: 174.7887256 | Q26: 0.2856054494 | R26: 1.077071383 | S26: 3.771186386 | T26: 0.288342144 | U26: 3.534883817 | V26: 4.100757785 | W26: 177 | AF26: 174.7887256 | AO26: =L26*Input!$E$5/Input!$E$7 -> 18.66250859 | AY26: 330826.5593 | AZ26: 0.002239501031
I27: 18HD07 | J27: HR6 | K27: 18HD08(47) | L27: 0.00183323799 | M27: 195.4526409 | Q27: 0.9167093344 | R27: 1.031798258 | S27: 1.125545709 | T27: 1.011736004 | U27: 1.203937378 | V27: 1.281720937 | W27: 76 | AF27: 195.4526409 | AO27: =L27*Input!$E$5/Input!$E$7 -> 15.27698325 | AY27: 94284.71361 | AZ27: 0.00183323799
I28: 18HD07 | J28: HR6 | K28: 18HD09(62) | L28: 0.00180452556 | M28: 198.4359504 | Q28: 0.6385148964 | R28: 1.0401627 | S28: 1.629034352 | T28: 0.6603621739 | U28: 1.619720658 | V28: 1.752438047 | W28: 76 | AF28: 198.4359504 | AO28: =L28*Input!$E$5/Input!$E$7 -> 15.037713 | AY28: 144452.9126 | AZ28: 0.00180452556
I29: 18HD07 | J29: HR6 | K29: HAH | L29: 0.001811821657 | M29: 197.6178404 | Q29: 0.5395123694 | R29: 1.104839286 | S29: 2.047847925 | T29: 0.5406644677 | U29: 1.857483722 | V29: 2.267374372 | W29: 76 | AF29: 197.6178404 | AO29: =L29*Input!$E$5/Input!$E$7 -> 15.09851381 | AY29: 176433.3428 | AZ29: 0.001811821657
I30: 18HD07 | J30: HR13 | K30: HAS | L30: 0.003299523381 | M30: 179.969139 | Q30: 0.4969468529 | R30: 1.394962972 | S30: 2.807066719 | T30: 0.6990066736 | U30: 2.830488749 | V30: 5.507909459 | W30: 167 | AF30: 179.969139 | AO30: =L30*Input!$E$5/Input!$E$7 -> 27.49602818 | AY30: 246307.5326 | AZ30: 0.003299523381
I31: 18HD07 | J31: HR13 | K31: 18HD06 | L31: 0.002157937555 | M31: 191.4520745 | Q31: 1.39428159 | R31: 0.5319628147 | S31: 0.3815318358 | T31: 4.663892313 | U31: 2.399095455 | V31: 0.6789066748 | W31: 66 | AF31: 191.4520745 | AO31: =L31*Input!$E$5/Input!$E$7 -> 17.98281296 | AY31: 36915.64845 | AZ31: 0.002157937555
I32: 18HD07 | J32: HR13 | K32: 18HD08(47) | L32: 0.001977727691 | M32: 194.6983952 | Q32: 2.320993099 | R32: 1.944516908 | S32: 0.8377952131 | T32: 2.804601039 | U32: 0.5206230503 | V32: 1.968551767 | W32: 66 | AF32: 194.6983952 | AO32: =L32*Input!$E$5/Input!$E$7 -> 16.48106409 | AY32: 61388.62771 | AZ32: 0.001977727691
I33: 18HD07 | J33: HR13 | K33: 18HD09(62) | L33: 0.001811862574 | M33: 198.4105015 | Q33: 1.548989865 | R33: 1.878250688 | S33: 1.212564866 | T33: 1.550323174 | U33: 0.6461377078 | V33: 2.279461176 | W33: 66 | AF33: 198.4105015 | AO33: =L33*Input!$E$5/Input!$E$7 -> 15.09885478 | AY33: 111054.6574 | AZ33: 0.001811862574
I34: 18HD07 | J34: HR13 | K34: HAH | L34: 0.001852960944 | M34: 197.4111407 | Q34: 1.249546641 | R34: 1.904692675 | S34: 1.524306987 | T34: 1.381676712 | U34: 0.8849148734 | V34: 3.210342129 | W34: 66 | AF34: 197.4111407 | AO34: =L34*Input!$E$5/Input!$E$7 -> 15.4413412 | AY34: 124609.9088 | AZ34: 0.001852960944
I35: 18HD07 | J35: HR13 | K35: MW125S | L35: 0.00153044124 | M35: 207.3382129 | Q35: 1.243257736 | R35: 1.767636202 | S35: 1.421777762 | T35: 1.278380118 | U35: 0.8270612379 | V35: 2.584184053 | W35: 126 | AF35: 207.3382129 | AO35: =L35*Input!$E$5/Input!$E$7 -> 12.753677 | AY35: 134678.7287 | AZ35: 0.00153044124
I36: 18HD07 | J36: HR13 | K36: MW133S | L36: 0.001311626122 | M36: 219.0769838 | Q36: 0.329756813 | R36: 1.195071598 | S36: 3.624099795 | T36: 0.3769267149 | U36: 3.466325684 | V36: 4.950592911 | W36: 268 | AF36: 219.0769838 | AO36: =L36*Input!$E$5/Input!$E$7 -> 10.93021769 | AY36: 456774.7582 | AZ36: 0.001311626122
I37: 18HD07 | J37: HAS | K37: 18HD03(57) | L37: 0.0023470436 | M37: 175.5347161 | Q37: 1.321608738 | R37: 1.138583939 | S37: 0.861513628 | T37: 1.58080832 | U37: 0.9050517453 | V37: 1.173284995 | W37: 278 | AF37: 175.5347161 | AO37: =L37*Input!$E$5/Input!$E$7 -> 19.55869667 | AY37: 858193.6037 | AZ37: 0.0023470436
I38: 18HD07 | J38: HAS | K38: MW125S | L38: 0.00207162628 | M38: 173.4625168 | Q38: 1.10920559 | R38: 0.5618120264 | S38: 0.5064994546 | T38: 2.196281492 | U38: 1.78510556 | V38: 0.5634377823 | W38: 227 | AF38: 173.4625168 | AO38: =L38*Input!$E$5/Input!$E$7 -> 17.26355233 | AY38: 617698.4113 | AZ38: 0.00207162628
I39: 18HD07 | J39: HAS | K39: MW133S | L39: 0.001549957221 | M39: 167.3755491 | Q39: 0.6873342432 | R39: 0.8873917647 | S39: 1.291062934 | T39: 0.7927561345 | U39: 1.678045178 | V39: 1.32140041 | W39: 369 | AF39: 167.3755491 | AO39: =L39*Input!$E$5/Input!$E$7 -> 12.91631017 | AY39: 1711294.974 | AZ39: 0.001549957221
I40: 18HD07 | J40: HAS | K40: MW132S | L40: 0.001940444117 | M40: 172.2582688 | Q40: 0.9623809545 | R40: 1.169729131 | S40: 1.215453325 | T40: 1.005550068 | U40: 1.085699556 | V40: 1.485526049 | W40: 332 | AF40: 172.2582688 | AO40: =L40*Input!$E$5/Input!$E$7 -> 16.17036764 | AY40: 1349151.705 | AZ40: 0.001940444117
I41: 18HD07 | J41: 18HD06 | K41: 18HD08(47) | L41: 0.002116262796 | M41: 194.0732098 | Q41: 0.5281470055 | R41: 1.159743412 | S41: 2.195872361 | T41: 0.5291830571 | U41: 1.897126486 | V41: 2.551644196 | W41: 44 | AF41: 194.0732098 | AO41: =L41*Input!$E$5/Input!$E$7 -> 17.6355233 | AY41: 47360.3223 | AZ41: 0.002116262796
I42: 18HD07 | J42: 18HD06 | K42: 18HD09(62) | L42: 0.002068940764 | M42: 197.6333411 | Q42: 0.3420166591 | R42: 1.086979763 | S42: 3.17814859 | T42: 0.3435497306 | U42: 2.936940118 | V42: 3.470068187 | W42: 44 | AF42: 197.6333411 | AO42: =L42*Input!$E$5/Input!$E$7 -> 17.24117303 | AY42: 72950.95267 | AZ42: 0.002068940764
I43: 18HD07 | J43: 18HD06 | K43: HAH | L43: 0.002084145352 | M43: 196.4030033 | Q43: 0.2744395155 | R43: 1.096448662 | S43: 3.995228822 | T43: 0.2820798954 | U43: 3.74523304 | V43: 4.50251792 | W43: 44 | AF43: 196.4030033 | AO43: =L43*Input!$E$5/Input!$E$7 -> 17.36787793 | AY43: 88848.16163 | AZ43: 0.002084145352
I44: 18HD07 | J44: 18HD08(47) | K44: 18HD03(57) | L44: 0.001542173877 | M44: 197.4097963 | Q44: 0.4459667987 | R44: 1.287299321 | S44: 2.886536227 | T44: 0.5198202707 | U44: 2.61365437 | V44: 4.331190002 | W44: 177 | AF44: 197.4097963 | AO44: =L44*Input!$E$5/Input!$E$7 -> 12.85144898 | AY44: 232477.8358 | AZ44: 0.001542173877
I45: 18HD07 | J45: 18HD08(47) | K45: MW125S | L45: 0.001604411266 | M45: 196.930374 | Q45: 0.6884320696 | R45: 1.168301504 | S45: 1.697046892 | T45: 0.6905999319 | U45: 1.457150283 | V45: 1.98890581 | W45: 126 | AF45: 196.930374 | AO45: =L45*Input!$E$5/Input!$E$7 -> 13.37009389 | AY45: 174987.9864 | AZ45: 0.001604411266
I46: 18HD07 | J46: 18HD08(47) | K46: MW133S | L46: 0.001261713648 | M46: 200.1749397 | Q46: 0.2420081073 | R46: 1.046868636 | S46: 4.325758536 | T46: 0.2427325104 | U46: 4.144461572 | V46: 4.542056105 | W46: 268 | AF46: 200.1749397 | AO46: =L46*Input!$E$5/Input!$E$7 -> 10.5142804 | AY46: 497859.5217 | AZ46: 0.001261713648
I47: 18HD07 | J47: 18HD08(47) | K47: MW132S | L47: 0.001281975707 | M47: 199.9333039 | Q47: 0.2852503584 | R47: 1.161660829 | S47: 4.072425485 | T47: 0.3231527928 | U47: 3.97150868 | V47: 5.359375748 | W47: 231 | AF47: 199.9333039 | AO47: =L47*Input!$E$5/Input!$E$7 -> 10.68313089 | AY47: 373961.4641 | AZ47: 0.001281975707
I48: 18HD07 | J48: 18HD09(62) | K48: 18HD03(57) | L48: 0.001499511642 | M48: 199.7159906 | Q48: 0.6527089371 | R48: 1.301755634 | S48: 1.994389168 | T48: 0.6669736406 | U48: 1.565559407 | V48: 2.65294645 | W48: 177 | AF48: 199.7159906 | AO48: =L48*Input!$E$5/Input!$E$7 -> 12.49593035 | AY48: 379542.4057 | AZ48: 0.001499511642
I49: 18HD07 | J49: 18HD09(62) | K49: MW125S | L49: 0.001582128888 | M49: 199.3201628 | Q49: 0.8442515405 | R49: 0.9899165809 | S49: 1.172537488 | T49: 0.9371113562 | U49: 1.314763011 | V49: 1.288382077 | W49: 126 | AF49: 199.3201628 | AO49: =L49*Input!$E$5/Input!$E$7 -> 13.1844074 | AY49: 270133.0833 | AZ49: 0.001582128888
I50: 18HD07 | J50: 18HD09(62) | K50: MW133S | L50: 0.001260842118 | M50: 201.1540486 | Q50: 0.3368628466 | R50: 1.006811765 | S50: 2.988788391 | T50: 0.3406211944 | U50: 3.00168724 | V50: 3.042720097 | W50: 268 | AF50: 201.1540486 | AO50: =L50*Input!$E$5/Input!$E$7 -> 10.50701765 | AY50: 743185.6391 | AZ50: 0.001260842118
I51: 18HD07 | J51: 18HD09(62) | K51: MW132S | L51: 0.001269819586 | M51: 201.0900578 | Q51: 0.415113961 | R51: 1.168028341 | S51: 2.813753452 | T51: 0.426676917 | U51: 2.476078841 | V51: 3.378090108 | W51: 231 | AF51: 201.0900578 | AO51: =L51*Input!$E$5/Input!$E$7 -> 10.58182989 | AY51: 593293.8249 | AZ51: 0.001269819586
I52: 18HD07 | J52: HAH | K52: 18HD03(57) | L52: 0.00150260039 | M52: 199.5399089 | Q52: 0.8868301632 | R52: 1.406963733 | S52: 1.586508659 | T52: 0.8921319419 | U52: 1.134352877 | V52: 2.245504774 | W52: 177 | AF52: 199.5399089 | AO52: =L52*Input!$E$5/Input!$E$7 -> 12.52166991 | AY52: 448409.5022 | AZ52: 0.00150260039
I53: 18HD07 | J53: HAH | K53: MW125S | L53: 0.001585352571 | M53: 198.9508092 | Q53: 1.006887647 | R53: 0.9391615193 | S53: 0.9327371552 | T53: 1.217344451 | U53: 1.200746848 | V53: 1.059087969 | W53: 126 | AF53: 198.9508092 | AO53: =L53*Input!$E$5/Input!$E$7 -> 13.21127142 | AY53: 328617.2944 | AZ53: 0.001585352571
I54: 18HD07 | J54: HAH | K54: MW133S | L54: 0.001260507508 | M54: 201.7183202 | Q54: 0.4281739198 | R54: 1.01800033 | S54: 2.377539319 | T54: 0.4346260678 | U54: 2.370693174 | V54: 2.456807824 | W54: 268 | AF54: 201.7183202 | AO54: =L54*Input!$E$5/Input!$E$7 -> 10.50422924 | AY54: 920424.4052 | AZ54: 0.001260507508
I55: 18HD07 | J55: HAH | K55: MW132S | L55: 0.001263885381 | M55: 201.6820331 | Q55: 0.5511718496 | R55: 1.233688764 | S55: 2.238301475 | T55: 0.562297351 | U55: 1.850938465 | V55: 2.81710607 | W55: 231 | AF55: 201.6820331 | AO55: =L55*Input!$E$5/Input!$E$7 -> 10.53237817 | AY55: 711439.3109 | AZ55: 0.001263885381
I56: 18HD07 | J56: 18HD03(57) | K56: MW125S | L56: 0.001659772029 | M56: 192.1513118 | Q56: 2.132777574 | R56: 1.253898538 | S56: 0.5879180992 | T56: 5.89382899 | U56: 1.29570579 | V56: 2.037188384 | W56: 177 | AF56: 192.1513118 | AO56: =L56*Input!$E$5/Input!$E$7 -> 13.83143358 | AY56: 170840.6673 | AZ56: 0.001659772029
I57: 18HD07 | J57: 18HD03(57) | K57: MW133S | L57: 0.001299587105 | M57: 217.1217467 | Q57: 1.228983961 | R57: 1.841753383 | S57: 1.498598388 | T57: 1.316595647 | U57: 0.8716858265 | V57: 2.956806723 | W57: 268 | AF57: 217.1217467 | AO57: =L57*Input!$E$5/Input!$E$7 -> 10.82989254 | AY57: 764779.7411 | AZ57: 0.001299587105
I58: 18HD07 | J58: MW133S | K58: MW132S | L58: 0.001260370861 | M58: 202.0418611 | Q58: 2.577894159 | R58: 2.426922765 | S58: 0.9414361551 | T58: 2.741735244 | U58: 0.4125678196 | V58: 2.430005524 | W58: 268 | AF58: 202.0418611 | AO58: =L58*Input!$E$5/Input!$E$7 -> 10.50309051 | AY58: 824771.7882 | AZ58: 0.001260370861
I59: 18HD05(65) | J59: MW108S | K59: HR6 | L59: 0.001498667908 | M59: 186.4121411 | Q59: 0.609489545 | R59: 0.6320660844 | S59: 1.037041717 | T59: 1.009926765 | U59: 2.718675426 | V59: 1.086131318 | W59: 133 | AF59: 186.4121411 | AO59: =L59*Input!$E$5/Input!$E$7 -> 12.48889924 | AY59: 244785.3439 | AZ59: 0.001498667908
I60: 18HD05(65) | J60: MW108S | K60: HR13 | L60: 0.001635353585 | M60: 187.5297526 | Q60: 0.8129332457 | R60: 0.761939561 | S60: 0.93727199 | T60: 1.087780797 | U60: 1.646006773 | V60: 0.9555923509 | W60: 123 | AF60: 187.5297526 | AO60: =L60*Input!$E$5/Input!$E$7 -> 13.62794654 | AY60: 227265.7058 | AZ60: 0.001635353585
I61: 18HD05(65) | J61: MW108S | K61: HAS | L61: 0.0005613856916 | M61: 57.021013 | Q61: 0.8799575666 | R61: 1.759550013 | S61: 1.999585071 | T61: 1.332651877 | U61: 1.721049079 | V61: 5.328395913 | W61: 68 | AF61: 57.021013 | AO61: =L61*Input!$E$5/Input!$E$7 -> 4.678214096 | AY61: 185506.2637 | AZ61: 0.0005613856916
I62: 18HD05(65) | J62: MW108S | K62: 18HD06 | L62: 0.001436799868 | M62: 185.8344023 | Q62: 0.6505451773 | R62: 0.5119975224 | S62: 0.7870283882 | T62: 1.441543007 | U62: 3.406219887 | V62: 0.8929114642 | W62: 101 | AF62: 185.8344023 | AO62: =L62*Input!$E$5/Input!$E$7 -> 11.97333223 | AY62: 171493.5104 | AZ62: 0.001436799868
I63: 18HD05(65) | J63: MW108S | K63: 18HD08(47) | L63: 0.001414804346 | M63: 185.6164611 | Q63: 1.037447327 | R63: 0.6241332995 | S63: 0.6016048077 | T63: 1.781470839 | U63: 1.655185244 | V63: 0.6447647919 | W63: 73 | AF63: 185.6164611 | AO63: =L63*Input!$E$5/Input!$E$7 -> 11.79003621 | AY63: 138770.3156 | AZ63: 0.001414804346
I64: 18HD05(65) | J64: MW108S | K64: 18HD09(62) | L64: 0.00168163328 | M64: 187.8660555 | Q64: 1.446410169 | R64: 1.085373487 | S64: 0.7503912173 | T64: 1.92905357 | U64: 0.9220646134 | V64: 1.086224947 | W64: 71 | AF64: 187.8660555 | AO64: =L64*Input!$E$5/Input!$E$7 -> 14.01361067 | AY64: 128153.6576 | AZ64: 0.00168163328
I65: 18HD05(65) | J65: MW108S | K65: HAH | L65: 0.001777628183 | M65: 188.5066723 | Q65: 1.493154811 | R65: 1.509806475 | S65: 1.011152001 | T65: 1.574972291 | U65: 0.7064204151 | V65: 1.61029635 | W65: 83 | AF65: 188.5066723 | AO65: =L65*Input!$E$5/Input!$E$7 -> 14.81356819 | AY65: 156964.838 | AZ65: 0.001777628183
I66: 18HD05(65) | J66: MW108S | K66: 18HD03(57) | L66: 0.001593636104 | M66: 187.2094716 | Q66: 0.47817622 | R66: 1.036688609 | S66: 2.168005362 | T66: 0.4844931247 | U66: 2.118905895 | V66: 2.277237476 | W66: 234 | AF66: 187.2094716 | AO66: =L66*Input!$E$5/Input!$E$7 -> 13.28030086 | AY66: 510255.4773 | AZ66: 0.001593636104
I67: 18HD05(65) | J67: MW108S | K67: MW125S | L67: 0.001499633697 | M67: 186.4207715 | Q67: 0.5304009479 | R67: 0.8095861274 | S67: 1.526366291 | T67: 0.6569345184 | U67: 2.335143098 | V67: 1.530522135 | W67: 183 | AF67: 186.4207715 | AO67: =L67*Input!$E$5/Input!$E$7 -> 12.49694748 | AY67: 376316.4572 | AZ67: 0.001499633697
I68: 18HD05(65) | J68: MW108S | K68: MW133S | L68: 0.001274743758 | M68: 184.045971 | Q68: 0.2747152334 | R68: 0.9391793797 | S68: 3.418737898 | T68: 0.293501548 | U68: 3.889062398 | V68: 3.43037824 | W68: 325 | AF68: 184.045971 | AO68: =L68*Input!$E$5/Input!$E$7 -> 10.62286465 | AY68: 842296.309 | AZ68: 0.001274743758
I69: 18HD05(65) | J69: MW108S | K69: MW132S | L69: 0.001410052883 | M69: 185.568461 | Q69: 0.3389913552 | R69: 1.033460071 | S69: 3.048632525 | T69: 0.3398045081 | U69: 2.95700385 | V69: 3.158197558 | W69: 288 | AF69: 185.568461 | AO69: =L69*Input!$E$5/Input!$E$7 -> 11.75044069 | AY69: 727522.0449 | AZ69: 0.001410052883
I70: 18HD05(65) | J70: HR6 | K70: HR13 | L70: 0.001546214763 | M70: 197.1044321 | Q70: 2.090861425 | R70: 1.889707825 | S70: 0.9037939115 | T70: 2.316650298 | U70: 0.5299195977 | V70: 1.892340586 | W70: 109 | AF70: 197.1044321 | AO70: =L70*Input!$E$5/Input!$E$7 -> 12.88512302 | AY70: 114764.4202 | AZ70: 0.001546214763
I71: 18HD05(65) | J71: HR6 | K71: HAS | L71: 0.001614262054 | M71: 160.1020422 | Q71: 0.4768108374 | R71: 0.9193688317 | S71: 1.928162616 | T71: 0.5204151881 | U71: 2.289062902 | V71: 1.93480535 | W71: 177 | AF71: 160.1020422 | AO71: =L71*Input!$E$5/Input!$E$7 -> 13.45218378 | AY71: 510878.6874 | AZ71: 0.001614262054
I72: 18HD05(65) | J72: HR6 | K72: 18HD06 | L72: 0.001548553301 | M72: 197.4280102 | Q72: 3.420406346 | R72: 2.59580386 | S72: 0.7589168064 | T72: 6.971887875 | U72: 0.5959296405 | V72: 4.015491723 | W72: 109 | AF72: 197.4280102 | AO72: =L72*Input!$E$5/Input!$E$7 -> 12.90461084 | AY72: 38134.43833 | AZ72: 0.001548553301
I73: 18HD05(65) | J73: HR6 | K73: 18HD08(47) | L73: 0.001494940076 | M73: 181.4494631 | Q73: 1.530422288 | R73: 0.8878229207 | S73: 0.5801163036 | T73: 2.776718194 | U73: 1.185520975 | V73: 0.9344626511 | W73: 109 | AF73: 181.4494631 | AO73: =L73*Input!$E$5/Input!$E$7 -> 12.45783397 | AY73: 95749.37376 | AZ73: 0.001494940076
I74: 18HD05(65) | J74: HR6 | K74: 18HD09(62) | L74: 0.001515934479 | M74: 191.8676074 | Q74: 1.065983941 | R74: 0.7713334705 | S74: 0.7235882653 | T74: 1.542957059 | U74: 1.357852248 | V74: 0.8078614228 | W74: 109 | AF74: 191.8676074 | AO74: =L74*Input!$E$5/Input!$E$7 -> 12.63278732 | AY74: 172311.3593 | AZ74: 0.001515934479
I75: 18HD05(65) | J75: HR6 | K75: HAH | L75: 0.001524693084 | M75: 193.6527207 | Q75: 0.9007018079 | R75: 0.8782158133 | S75: 0.9750350288 | T75: 1.103108639 | U75: 1.359741074 | V75: 1.048718 | W75: 109 | AF75: 193.6527207 | AO75: =L75*Input!$E$5/Input!$E$7 -> 12.7057757 | AY75: 241017.9913 | AZ75: 0.001524693084
I76: 18HD05(65) | J76: HR6 | K76: 18HD03(57) | L76: 0.001518800732 | M76: 192.4881717 | Q76: 0.7160981308 | R76: 1.497051238 | S76: 2.090567164 | T76: 0.8316827419 | U76: 1.621857186 | V76: 3.63484536 | W76: 210 | AF76: 192.4881717 | AO76: =L76*Input!$E$5/Input!$E$7 -> 12.65667277 | AY76: 319676.0193 | AZ76: 0.001518800732
I77: 18HD05(65) | J77: HR6 | K77: MW125S | L77: 0.001498989104 | M77: 186.578913 | Q77: 1.829158002 | R77: 2.692239925 | S77: 1.471846566 | T77: 3.004719879 | U77: 0.8980521308 | V77: 6.509221771 | W77: 159 | AF77: 186.578913 | AO77: =L77*Input!$E$5/Input!$E$7 -> 12.49157587 | AY77: 88483.79847 | AZ77: 0.001498989104
I78: 18HD05(65) | J78: HR6 | K78: MW132S | L78: 0.00149583894 | M78: 180.1299837 | Q78: 0.4622796649 | R78: 1.358981802 | S78: 2.939739524 | T78: 0.6343543886 | U78: 2.968399632 | V78: 5.48213406 | W78: 264 | AF78: 180.1299837 | AO78: =L78*Input!$E$5/Input!$E$7 -> 12.4653245 | AY78: 419117.5044 | AZ78: 0.00149583894
I79: 18HD05(65) | J79: HR13 | K79: HAS | L79: 0.002168849949 | M79: 164.6508882 | Q79: 0.5581278862 | R79: 1.190715396 | S79: 2.13340961 | T79: 0.5606757694 | U79: 1.799883284 | V79: 2.551880197 | W79: 167 | AF79: 164.6508882 | AO79: =L79*Input!$E$5/Input!$E$7 -> 18.07374957 | AY79: 387342.1716 | AZ79: 0.002168849949
I80: 18HD05(65) | J80: HR13 | K80: 18HD06 | L80: 0.001545578902 | M80: 197.201394 | Q80: 1.565936945 | R80: 1.314919088 | S80: 0.8397011717 | T80: 1.875294619 | U80: 0.7647526071 | V80: 1.322266593 | W80: 99 | AF80: 197.201394 | AO80: =L80*Input!$E$5/Input!$E$7 -> 12.87982418 | AY80: 115807.6005 | AZ80: 0.001545578902
I81: 18HD05(65) | J81: HR13 | K81: 18HD09(62) | L81: 0.00161372108 | M81: 189.3846305 | Q81: 1.739691949 | R81: 1.392818278 | S81: 0.8006120158 | T81: 2.174003033 | U81: 0.7183158317 | V81: 1.393491594 | W81: 99 | AF81: 189.3846305 | AO81: =L81*Input!$E$5/Input!$E$7 -> 13.44767566 | AY81: 99895.61505 | AZ81: 0.00161372108
I82: 18HD05(65) | J82: HR13 | K82: HAH | L82: 0.001584517653 | M82: 192.2601527 | Q82: 1.403383122 | R82: 1.514004116 | S82: 1.078824516 | T82: 1.446115394 | U82: 0.7342609829 | V82: 1.68307924 | W82: 99 | AF82: 192.2601527 | AO82: =L82*Input!$E$5/Input!$E$7 -> 13.20431377 | AY82: 150177.0682 | AZ82: 0.001584517653
I83: 18HD05(65) | J83: HR13 | K83: MW125S | L83: 0.001507453889 | M83: 206.0119226 | Q83: 1.396319965 | R83: 2.273935153 | S83: 1.628520117 | T83: 2.303489053 | U83: 1.181452477 | V83: 6.109032112 | W83: 159 | AF83: 206.0119226 | AO83: =L83*Input!$E$5/Input!$E$7 -> 12.56211574 | AY83: 94280.1833 | AZ83: 0.001507453889
I84: 18HD05(65) | J84: HAS | K84: 18HD06 | L84: 0.001431527617 | M84: 157.79005 | Q84: 0.8983220902 | R84: 0.3535758479 | S84: 0.3935958513 | T84: 2.555360358 | U84: 3.166561991 | V84: 0.3958705345 | W84: 145 | AF84: 157.79005 | AO84: =L84*Input!$E$5/Input!$E$7 -> 11.92939681 | AY84: 386814.648 | AZ84: 0.001431527617
I85: 18HD05(65) | J85: HAS | K85: 18HD08(47) | L85: 0.002096519763 | M85: 164.1983007 | Q85: 1.213400642 | R85: 0.365069569 | S85: 0.3008648227 | T85: 4.553849653 | U85: 3.092931113 | V85: 0.4122128381 | W85: 117 | AF85: 164.1983007 | AO85: =L85*Input!$E$5/Input!$E$7 -> 17.47099803 | AY85: 217058.2897 | AZ85: 0.002096519763
I86: 18HD05(65) | J86: HAS | K86: 18HD09(62) | L86: 0.003664104849 | M86: 169.9509111 | Q86: 1.502015906 | R86: 0.563666713 | S86: 0.3752734646 | T86: 7.221312357 | U86: 3.200862859 | V86: 1.01697867 | W86: 115 | AF86: 169.9509111 | AO86: =L86*Input!$E$5/Input!$E$7 -> 30.53420708 | AY86: 136879.6651 | AZ86: 0.003664104849
I87: 18HD05(65) | J87: HAS | K87: HAH | L87: 0.004484014262 | M87: 171.3438332 | Q87: 1.864019037 | R87: 0.9425988453 | S87: 0.5056809113 | T87: 6.819636567 | U87: 1.962729925 | V87: 1.743870981 | W87: 127 | AF87: 171.3438332 | AO87: =L87*Input!$E$5/Input!$E$7 -> 37.36678551 | AY87: 144941.8613 | AZ87: 0.004484014262
I88: 18HD05(65) | J88: HAS | K88: 18HD03(57) | L88: 0.002250923463 | M88: 165.1283278 | Q88: 1.128101536 | R88: 1.223118844 | S88: 1.08422762 | T88: 1.201520433 | U88: 0.9441364822 | V88: 1.412446782 | W88: 278 | AF88: 165.1283278 | AO88: =L88*Input!$E$5/Input!$E$7 -> 18.75769552 | AY88: 822666.6732 | AZ88: 0.002250923463
I89: 18HD05(65) | J89: HAS | K89: MW125S | L89: 0.001778545589 | M89: 161.7567128 | Q89: 0.9467980154 | R89: 0.7227302285 | S89: 0.7633415118 | T89: 1.376031376 | U89: 1.535018659 | V89: 0.8018000853 | W89: 227 | AF89: 161.7567128 | AO89: =L89*Input!$E$5/Input!$E$7 -> 14.82121324 | AY89: 718334.5049 | AZ89: 0.001778545589
I90: 18HD05(65) | J90: HAS | K90: MW133S | L90: 0.001540307503 | M90: 159.2360919 | Q90: 0.5866961934 | R90: 1.003088361 | S90: 1.709723656 | T90: 0.6126687185 | U90: 1.779914602 | V90: 1.790925616 | W90: 369 | AF90: 159.2360919 | AO90: =L90*Input!$E$5/Input!$E$7 -> 12.83589586 | AY90: 1613352.841 | AZ90: 0.001540307503
I91: 18HD05(65) | J91: HAS | K91: MW132S | L91: 0.001972655793 | M91: 163.343839 | Q91: 0.8214711375 | R91: 1.252441651 | S91: 1.52463257 | T91: 0.823192884 | U91: 1.219879658 | V91: 1.913515541 | W91: 332 | AF91: 163.343839 | AO91: =L91*Input!$E$5/Input!$E$7 -> 16.43879828 | AY91: 1200752.383 | AZ91: 0.001972655793
I92: 18HD05(65) | J92: 18HD06 | K92: 18HD08(47) | L92: 0.001430097288 | M92: 184.7520964 | Q92: 1.305487075 | R92: 0.9979148302 | S92: 0.764400391 | T92: 1.726375184 | U92: 1.012954719 | V92: 1.008734758 | W92: 77 | AF92: 184.7520964 | AO92: =L92*Input!$E$5/Input!$E$7 -> 11.9174774 | AY92: 88699.44546 | AZ92: 0.001430097288
I93: 18HD05(65) | J93: 18HD06 | K93: 18HD09(62) | L93: 0.00149188698 | M93: 192.5411561 | Q93: 0.8454053947 | R93: 0.8060507 | S93: 0.9534487301 | T93: 1.088458327 | U93: 1.522936433 | V93: 0.989478804 | W93: 77 | AF93: 192.5411561 | AO93: =L93*Input!$E$5/Input!$E$7 -> 12.4323915 | AY93: 140683.8624 | AZ93: 0.00149188698
I94: 18HD05(65) | J94: 18HD06 | K94: HAH | L94: 0.001507949956 | M94: 194.0664093 | Q94: 0.6783665087 | R94: 0.8715462654 | S94: 1.284771955 | T94: 0.792150854 | U94: 1.721389295 | V94: 1.307555074 | W94: 77 | AF94: 194.0664093 | AO94: =L94*Input!$E$5/Input!$E$7 -> 12.56624963 | AY94: 193307.2731 | AZ94: 0.001507949956
I95: 18HD05(65) | J95: 18HD06 | K95: 18HD03(57) | L95: 0.001504156701 | M95: 193.7180461 | Q95: 0.458282175 | R95: 1.262417249 | S95: 2.754672378 | T95: 0.5046214367 | U95: 2.402701196 | V95: 3.829178433 | W95: 210 | AF95: 193.7180461 | AO95: =L95*Input!$E$5/Input!$E$7 -> 12.53463918 | AY95: 303452.272 | AZ95: 0.001504156701
I96: 18HD05(65) | J96: 18HD06 | K96: MW125S | L96: 0.001484339747 | M96: 191.7748854 | Q96: 0.9065475503 | R96: 1.758162275 | S96: 1.939404364 | T96: 1.269554618 | U96: 1.544792713 | V96: 4.775162184 | W96: 159 | AF96: 191.7748854 | AO96: =L96*Input!$E$5/Input!$E$7 -> 12.36949789 | AY96: 120615.9383 | AZ96: 0.001484339747
I97: 18HD05(65) | J97: 18HD06 | K97: MW132S | L97: 0.001427624858 | M97: 184.3277188 | Q97: 0.3105554073 | R97: 1.202967173 | S97: 3.873599187 | T97: 0.3762675877 | U97: 3.901383278 | V97: 5.64580886 | W97: 264 | AF97: 184.3277188 | AO97: =L97*Input!$E$5/Input!$E$7 -> 11.89687381 | AY97: 406967.08 | AZ97: 0.001427624858
I98: 18HD05(65) | J98: 18HD08(47) | K98: 18HD09(62) | L98: 0.001215619788 | M98: 202.999167 | Q98: 1.828828696 | R98: 2.281127035 | S98: 1.247315859 | T98: 1.881440243 | U98: 0.5625282973 | V98: 2.927138806 | W98: 49 | AF98: 202.999167 | AO98: =L98*Input!$E$5/Input!$E$7 -> 10.1301649 | AY98: 47556.23463 | AZ98: 0.001215619788
I99: 18HD05(65) | J99: 18HD08(47) | K99: HAH | L99: 0.001208915545 | M99: 204.0261337 | Q99: 1.045780394 | R99: 1.757703602 | S99: 1.680757846 | T99: 1.189235234 | U99: 1.087393611 | V99: 3.359526432 | W99: 59 | AF99: 204.0261337 | AO99: =L99*Input!$E$5/Input!$E$7 -> 10.07429621 | AY99: 75236.76651 | AZ99: 0.001208915545
I100: 18HD05(65) | J100: 18HD08(47) | K100: MW125S | L100: 0.001540741314 | M100: 179.4060836 | Q100: 0.592369454 | R100: 1.502934742 | S100: 2.537157734 | T100: 0.9220665446 | U100: 2.627707093 | V100: 5.935498517 | W100: 159 | AF100: 179.4060836 | AO100: =L100*Input!$E$5/Input!$E$7 -> 12.83951095 | AY100: 97036.61213 | AZ100: 0.001540741314
I101: 18HD05(65) | J101: 18HD09(62) | K101: 18HD03(57) | L101: 0.001532257857 | M101: 191.4255945 | Q101: 0.4840168269 | R101: 1.398405327 | S101: 2.88916676 | T101: 0.7256928273 | U101: 3.097646893 | V101: 6.057564537 | W101: 210 | AF101: 191.4255945 | AO101: =L101*Input!$E$5/Input!$E$7 -> 12.76881548 | AY101: 191821.7938 | AZ101: 0.001532257857
I102: 18HD05(65) | J102: 18HD09(62) | K102: MW125S | L102: 0.001482918512 | M102: 192.7994994 | Q102: 0.6260553954 | R102: 1.273455539 | S102: 2.034094024 | T102: 0.6368678224 | U102: 1.624889309 | V102: 2.635065134 | W102: 159 | AF102: 192.7994994 | AO102: =L102*Input!$E$5/Input!$E$7 -> 12.35765427 | AY102: 218575.4955 | AZ102: 0.001482918512
I103: 18HD05(65) | J103: 18HD09(62) | K103: MW133S | L103: 0.00125914372 | M103: 200.9072045 | Q103: 0.2498009094 | R103: 1.138078134 | S103: 4.555940714 | T103: 0.2823319125 | U103: 4.524514036 | V103: 5.860249386 | W103: 301 | AF103: 200.9072045 | AO103: =L103*Input!$E$5/Input!$E$7 -> 10.49286433 | AY103: 493049.8243 | AZ103: 0.00125914372
I104: 18HD05(65) | J104: 18HD09(62) | K104: MW132S | L104: 0.001271170417 | M104: 200.3671688 | Q104: 0.307828085 | R104: 1.250620597 | S104: 4.062724156 | T104: 0.4755835634 | U104: 5.018920949 | V104: 7.849852732 | W104: 264 | AF104: 200.3671688 | AO104: =L104*Input!$E$5/Input!$E$7 -> 10.59308681 | AY104: 292700.8218 | AZ104: 0.001271170417
I105: 18HD05(65) | J105: HAH | K105: 18HD03(57) | L105: 0.00149711868 | M105: 194.340035 | Q105: 0.7049244926 | R105: 1.511424671 | S105: 2.144094419 | T105: 0.8498556817 | U105: 1.710251506 | V105: 3.906906296 | W105: 210 | AF105: 194.340035 | AO105: =L105*Input!$E$5/Input!$E$7 -> 12.475989 | AY105: 297415.092 | AZ105: 0.00149711868
I106: 18HD05(65) | J106: HAH | K106: MW125S | L106: 0.001481529836 | M106: 194.7424521 | Q106: 0.8003559113 | R106: 1.208162851 | S106: 1.509531989 | T106: 0.8055170708 | U106: 1.257501277 | V106: 1.835521137 | W106: 159 | AF106: 194.7424521 | AO106: =L106*Input!$E$5/Input!$E$7 -> 12.34608197 | AY106: 313785.9084 | AZ106: 0.001481529836
I107: 18HD05(65) | J107: HAH | K107: MW133S | L107: 0.001261420342 | M107: 201.8147892 | Q107: 0.3403473355 | R107: 1.150725443 | S107: 3.38103262 | T107: 0.3575029951 | U107: 3.086277514 | V107: 4.086753152 | W107: 301 | AF107: 201.8147892 | AO107: =L107*Input!$E$5/Input!$E$7 -> 10.51183619 | AY107: 707014.7921 | AZ107: 0.001261420342
I108: 18HD05(65) | J108: HAH | K108: MW132S | L108: 0.001263910391 | M108: 201.7162685 | Q108: 0.4381160593 | R108: 1.320923924 | S108: 3.015009141 | T108: 0.5647350996 | U108: 2.942161008 | V108: 5.133600247 | W108: 264 | AF108: 201.7162685 | AO108: =L108*Input!$E$5/Input!$E$7 -> 10.53258659 | AY108: 447572.5096 | AZ108: 0.001263910391
I109: 18HD05(65) | J109: 18HD03(57) | K109: MW125S | L109: 0.001481491475 | M109: 195.8041948 | Q109: 2.291127033 | R109: 1.613049087 | S109: 0.7040417509 | T109: 3.784882487 | U109: 0.7210312058 | V109: 1.876070821 | W109: 210 | AF109: 195.8041948 | AO109: =L109*Input!$E$5/Input!$E$7 -> 12.34576229 | AY109: 307003.6915 | AZ109: 0.001481491475
I110: 18HD05(65) | J110: 18HD03(57) | K110: MW133S | L110: 0.001378553958 | M110: 219.5851767 | Q110: 1.320230675 | R110: 2.081877988 | S110: 1.576904725 | T110: 1.654372954 | U110: 0.9491476641 | V110: 4.113810953 | W110: 301 | AF110: 219.5851767 | AO110: =L110*Input!$E$5/Input!$E$7 -> 11.48794965 | AY110: 702364.5381 | AZ110: 0.001378553958
I111: 18HD05(65) | J111: MW125S | K111: MW132S | L111: 0.001563934424 | M111: 176.66148 | Q111: 0.9051714416 | R111: 1.807911452 | S111: 1.997313845 | T111: 1.510352561 | U111: 1.843387548 | V111: 6.025192975 | W111: 264 | AF111: 176.66148 | AO111: =L111*Input!$E$5/Input!$E$7 -> 13.03278687 | AY111: 381341.8683 | AZ111: 0.001563934424
I112: 18HD05(65) | J112: MW133S | K112: MW132S | L112: 0.001262125198 | M112: 202.0721836 | Q112: 2.913995519 | R112: 2.598532494 | S112: 0.8917421035 | T112: 3.301301725 | U112: 0.3887831728 | V112: 2.625208269 | W112: 301 | AF112: 202.0721836 | AO112: =L112*Input!$E$5/Input!$E$7 -> 10.51770998 | AY112: 875228.9764 | AZ112: 0.001262125198
I113: MW108S | J113: HR6 | K113: HR13 | L113: 0.001887572183 | M113: 199.0539415 | Q113: 3.307979143 | R113: 2.480128244 | S113: 0.7497411973 | T113: 6.843471544 | U113: 0.6253900112 | V113: 3.846796539 | W113: 133 | AF113: 199.0539415 | AO113: =L113*Input!$E$5/Input!$E$7 -> 15.72976819 | AY113: 97244.78209 | AZ113: 0.001887572183
I114: MW108S | J114: HR6 | K114: HAS | L114: 0.001198120674 | M114: 130.8934196 | Q114: 0.7543686478 | R114: 0.5225022448 | S114: 0.6926351544 | T114: 1.473632591 | U114: 2.589536023 | V114: 0.7069655935 | W114: 177 | AF114: 130.8934196 | AO114: =L114*Input!$E$5/Input!$E$7 -> 9.984338949 | AY114: 451599.6072 | AZ114: 0.001198120674
I115: MW108S | J115: HR6 | K115: 18HD06 | L115: 0.001606067948 | M115: 190.8246578 | Q115: 5.411469512 | R115: 5.069953949 | S115: 0.9368904209 | T115: 5.972486451 | U115: 0.2039504844 | V115: 5.242431572 | W115: 133 | AF115: 190.8246578 | AO115: =L115*Input!$E$5/Input!$E$7 -> 13.38389956 | AY115: 111426.2719 | AZ115: 0.001606067948
I116: MW108S | J116: HR6 | K116: HAH | L116: 0.001842395634 | M116: 197.9622132 | Q116: 1.425012084 | R116: 0.5816744251 | S116: 0.4081891177 | T116: 4.344013203 | U116: 2.139213066 | V116: 0.7237923375 | W116: 133 | AF116: 197.9622132 | AO116: =L116*Input!$E$5/Input!$E$7 -> 15.35329695 | AY116: 153197.4854 | AZ116: 0.001842395634
I117: MW108S | J117: HR6 | K117: 18HD03(57) | L117: 0.001591297193 | M117: 190.2736302 | Q117: 1.132948197 | R117: 1.444070308 | S117: 1.27461283 | T117: 1.137308852 | U117: 0.8860501717 | V117: 1.847715026 | W117: 234 | AF117: 190.2736302 | AO117: =L117*Input!$E$5/Input!$E$7 -> 13.26080994 | AY117: 585146.1526 | AZ117: 0.001591297193
I118: MW108S | J118: HR6 | K118: MW125S | L118: 0.001500447927 | M118: 186.4939003 | Q118: 2.893934744 | R118: 3.325452146 | S118: 1.149110965 | T118: 3.024758157 | U118: 0.3611712639 | V118: 3.994060087 | W118: 183 | AF118: 186.4939003 | AO118: =L118*Input!$E$5/Input!$E$7 -> 12.50373273 | AY118: 220014.9117 | AZ118: 0.001500447927
I119: MW108S | J119: HR6 | K119: MW133S | L119: 0.001278371316 | M119: 172.3023733 | Q119: 0.6787914446 | R119: 1.505982335 | S119: 2.218623035 | T119: 0.8442487512 | U119: 1.832304749 | V119: 4.155635642 | W119: 325 | AF119: 172.3023733 | AO119: =L119*Input!$E$5/Input!$E$7 -> 10.6530943 | AY119: 788265.1862 | AZ119: 0.001278371316
I120: MW108S | J120: HR6 | K120: MW132S | L120: 0.001424596983 | M120: 182.6765146 | Q120: 0.7313786902 | R120: 1.314982398 | S120: 1.797950112 | T120: 0.7379151697 | U120: 1.37950041 | V120: 2.385402734 | W120: 288 | AF120: 182.6765146 | AO120: =L120*Input!$E$5/Input!$E$7 -> 11.87164153 | AY120: 901854.2054 | AZ120: 0.001424596983
I121: MW108S | J121: HR13 | K121: HAS | L121: 0.00152209002 | M121: 137.0450659 | Q121: 0.7325093942 | R121: 0.6767158576 | S121: 0.9238323262 | T121: 1.082464079 | U121: 2.017377144 | V121: 0.9238464688 | W121: 167 | AF121: 137.0450659 | AO121: =L121*Input!$E$5/Input!$E$7 -> 12.6840835 | AY121: 345582.7295 | AZ121: 0.00152209002
I122: MW108S | J122: HR13 | K122: 18HD06 | L122: 0.001772441345 | M122: 194.5863344 | Q122: 2.055198372 | R122: 2.568213771 | S122: 1.249618434 | T122: 2.180215269 | U122: 0.5161689575 | V122: 3.404506936 | W122: 123 | AF122: 194.5863344 | AO122: =L122*Input!$E$5/Input!$E$7 -> 14.77034454 | AY122: 171579.796 | AZ122: 0.001772441345
I123: MW108S | J123: HR13 | K123: 18HD08(47) | L123: 0.001999116701 | M123: 202.593428 | Q123: 3.421189286 | R123: 2.680809366 | S123: 0.7835898988 | T123: 5.785389031 | U123: 0.4942860586 | V123: 3.552304824 | W123: 123 | AF123: 202.593428 | AO123: =L123*Input!$E$5/Input!$E$7 -> 16.65930584 | AY123: 64659.59146 | AZ123: 0.001999116701
I124: MW108S | J124: HR13 | K124: HAH | L124: 0.001834279421 | M124: 197.1086852 | Q124: 1.841856222 | R124: 1.002780251 | S124: 0.544440027 | T124: 4.683258462 | U124: 1.38050084 | V124: 1.38818779 | W124: 123 | AF124: 197.1086852 | AO124: =L124*Input!$E$5/Input!$E$7 -> 15.28566184 | AY124: 79876.20035 | AZ124: 0.001834279421
I125: MW108S | J125: HR13 | K125: 18HD03(57) | L125: 0.001597969751 | M125: 185.076339 | Q125: 0.9907773927 | R125: 1.684391335 | S125: 1.700070417 | T125: 1.098430399 | U125: 1.118974956 | V125: 3.174726842 | W125: 234 | AF125: 185.076339 | AO125: =L125*Input!$E$5/Input!$E$7 -> 13.31641459 | AY125: 340559.4851 | AZ125: 0.001597969751
I126: MW108S | J126: HR13 | K126: MW132S | L126: 0.001485674654 | M126: 174.7683856 | Q126: 0.5817540404 | R126: 1.395101064 | S126: 2.398094327 | T126: 0.6822710866 | U126: 2.015942546 | V126: 3.923643046 | W126: 288 | AF126: 174.7683856 | AO126: =L126*Input!$E$5/Input!$E$7 -> 12.38062212 | AY126: 548287.7679 | AZ126: 0.001485674654
I127: MW108S | J127: HAS | K127: 18HD06 | L127: 0.0009596461466 | M127: 123.2387108 | Q127: 0.5105408107 | R127: 0.6905811697 | S127: 1.352646361 | T127: 0.796515865 | U127: 3.055860347 | V127: 1.457346987 | W127: 145 | AF127: 123.2387108 | AO127: =L127*Input!$E$5/Input!$E$7 -> 7.997051222 | AY127: 400827.4014 | AZ127: 0.0009596461466
I128: MW108S | J128: HAS | K128: 18HD08(47) | L128: 0.001122281425 | M128: 128.8709986 | Q128: 0.6896084983 | R128: 0.5849224345 | S128: 0.8481949338 | T128: 1.210281873 | U128: 2.5449621 | V128: 0.8707187106 | W128: 117 | AF128: 128.8709986 | AO128: =L128*Input!$E$5/Input!$E$7 -> 9.352345206 | AY128: 263794.2378 | AZ128: 0.001122281425
I129: MW108S | J129: HAS | K129: 18HD09(62) | L129: 0.001559908914 | M129: 137.5831217 | Q129: 0.8536363815 | R129: 0.5193297234 | S129: 0.6083734651 | T129: 1.643729861 | U129: 2.255717 | V129: 0.6083744577 | W129: 115 | AF129: 137.5831217 | AO129: =L129*Input!$E$5/Input!$E$7 -> 12.99924095 | AY129: 194232.2713 | AZ129: 0.001559908914
I130: MW108S | J130: HAS | K130: HAH | L130: 0.002212322666 | M130: 143.8413979 | Q130: 1.05937258 | R130: 0.6243176599 | S130: 0.5893277508 | T130: 1.840323583 | U130: 1.639822103 | V130: 0.6391576269 | W130: 127 | AF130: 143.8413979 | AO130: =L130*Input!$E$5/Input!$E$7 -> 18.43602222 | AY130: 173483.287 | AZ130: 0.002212322666
I131: MW108S | J131: HAS | K131: 18HD03(57) | L131: 0.002289751205 | M131: 144.3387416 | Q131: 0.6411307027 | R131: 1.179832433 | S131: 1.840236987 | T131: 0.6412014243 | U131: 1.559916415 | V131: 2.171410779 | W131: 278 | AF131: 144.3387416 | AO131: =L131*Input!$E$5/Input!$E$7 -> 19.08126004 | AY131: 497917.4597 | AZ131: 0.002289751205
I132: MW108S | J132: HAS | K132: MW125S | L132: 0.001537753951 | M132: 137.2713657 | Q132: 0.538090994 | R132: 0.8927156778 | S132: 1.659042221 | T132: 0.6052145416 | U132: 2.090248439 | V132: 1.665805269 | W132: 227 | AF132: 137.2713657 | AO132: =L132*Input!$E$5/Input!$E$7 -> 12.81461625 | AY132: 527524.3115 | AZ132: 0.001537753951
I133: MW108S | J133: HAS | K133: MW133S | L133: 0.001659677168 | M133: 138.8771436 | Q133: 0.3334353608 | R133: 1.068047683 | S133: 3.203162619 | T133: 0.3337631214 | U133: 3.002030074 | V133: 3.424493321 | W133: 369 | AF133: 138.8771436 | AO133: =L133*Input!$E$5/Input!$E$7 -> 13.83064306 | AY133: 956562.7952 | AZ133: 0.001659677168
I134: MW108S | J134: HAS | K134: MW132S | L134: 0.00223601278 | M134: 143.9973403 | Q134: 0.4668643298 | R134: 1.21189167 | S134: 2.59581123 | T134: 0.4846631922 | U134: 2.223610169 | V134: 3.265774941 | W134: 332 | AF134: 143.9973403 | AO134: =L134*Input!$E$5/Input!$E$7 -> 18.63343984 | AY134: 658736.602 | AZ134: 0.00223601278
I135: MW108S | J135: 18HD06 | K135: 18HD09(62) | L135: 0.001852277104 | M135: 196.1061575 | Q135: 1.651190402 | R135: 0.7426482306 | S135: 0.449765351 | T135: 6.00082746 | U135: 2.200983713 | V135: 1.213900611 | W135: 101 | AF135: 196.1061575 | AO135: =L135*Input!$E$5/Input!$E$7 -> 15.43564253 | AY135: 97344.00954 | AZ135: 0.001852277104
I136: MW108S | J136: 18HD06 | K136: HAH | L136: 0.001820417493 | M136: 195.5185084 | Q136: 1.324940999 | R136: 0.5772569398 | S136: 0.4356850157 | T136: 3.267419049 | U136: 1.861280205 | V136: 0.6202261657 | W136: 101 | AF136: 195.5185084 | AO136: =L136*Input!$E$5/Input!$E$7 -> 15.17014577 | AY136: 178778.6007 | AZ136: 0.001820417493
I137: MW108S | J137: 18HD06 | K137: 18HD03(57) | L137: 0.00159130083 | M137: 190.4433962 | Q137: 0.8950867045 | R137: 1.21774006 | S137: 1.360471621 | T137: 0.9095790317 | U137: 1.135298928 | V137: 1.683524396 | W137: 234 | AF137: 190.4433962 | AO137: =L137*Input!$E$5/Input!$E$7 -> 13.26084025 | AY137: 642214.2389 | AZ137: 0.00159130083
I138: MW108S | J138: 18HD06 | K138: MW125S | L138: 0.001525860022 | M138: 188.6398454 | Q138: 1.770609252 | R138: 2.171680339 | S138: 1.226515865 | T138: 1.794944096 | U138: 0.5725395184 | V138: 2.700208297 | W138: 183 | AF138: 188.6398454 | AO138: =L138*Input!$E$5/Input!$E$7 -> 12.71550018 | AY138: 325438.8851 | AZ138: 0.001525860022
I139: MW108S | J139: 18HD06 | K139: MW133S | L139: 0.001269736592 | M139: 179.0174187 | Q139: 0.5661902501 | R139: 1.340778711 | S139: 2.368070999 | T139: 0.6243116802 | U139: 1.947496507 | V139: 3.500990228 | W139: 325 | AF139: 179.0174187 | AO139: =L139*Input!$E$5/Input!$E$7 -> 10.58113827 | AY139: 935661.8241 | AZ139: 0.001269736592
I140: MW108S | J140: 18HD06 | K140: MW132S | L140: 0.001412648891 | M140: 184.9904203 | Q140: 0.6065564651 | R140: 1.164019014 | S140: 1.91906126 | T140: 0.6065911378 | U140: 1.64874537 | V140: 2.23395149 | W140: 288 | AF140: 184.9904203 | AO140: =L140*Input!$E$5/Input!$E$7 -> 11.77207409 | AY140: 962995.6145 | AZ140: 0.001412648891
I141: MW108S | J141: 18HD08(47) | K141: 18HD09(62) | L141: 0.002125483165 | M141: 204.746514 | Q141: 2.930189268 | R141: 2.101697767 | S141: 0.7172566599 | T141: 6.218007886 | U141: 0.7242023366 | V141: 3.198898406 | W141: 73 | AF141: 204.746514 | AO141: =L141*Input!$E$5/Input!$E$7 -> 17.71235971 | AY141: 36939.57661 | AZ141: 0.002125483165
I142: MW108S | J142: 18HD08(47) | K142: HAH | L142: 0.00186214238 | M142: 199.8553014 | Q142: 1.675572181 | R142: 1.164191326 | S142: 0.6948022529 | T142: 2.458390345 | U142: 0.875637917 | V142: 1.186788358 | W142: 83 | AF142: 199.8553014 | AO142: =L142*Input!$E$5/Input!$E$7 -> 15.51785317 | AY142: 93431.28894 | AZ142: 0.00186214238
I143: MW108S | J143: 18HD08(47) | K143: 18HD03(57) | L143: 0.001592607698 | M143: 192.6391894 | Q143: 0.6148323865 | R143: 1.33393546 | S143: 2.169592053 | T143: 0.6504572299 | U143: 1.720700454 | V143: 3.06178653 | W143: 234 | AF143: 192.6391894 | AO143: =L143*Input!$E$5/Input!$E$7 -> 13.27173082 | AY143: 353121.7243 | AZ143: 0.001592607698
I144: MW108S | J144: 18HD08(47) | K144: MW125S | L144: 0.001570264678 | M144: 191.8861766 | Q144: 0.9491072732 | R144: 1.856423537 | S144: 1.955968086 | T144: 1.634697515 | U144: 1.814708191 | V144: 6.254043985 | W144: 183 | AF144: 191.8861766 | AO144: =L144*Input!$E$5/Input!$E$7 -> 13.08553898 | AY144: 140509.5295 | AZ144: 0.001570264678
I145: MW108S | J145: 18HD08(47) | K145: MW133S | L145: 0.001270329607 | M145: 177.2141667 | Q145: 0.3336446179 | R145: 1.259990983 | S145: 3.776446299 | T145: 0.4763426984 | U145: 4.279088467 | V145: 6.793383616 | W145: 325 | AF145: 177.2141667 | AO145: =L145*Input!$E$5/Input!$E$7 -> 10.58608006 | AY145: 482196.0732 | AZ145: 0.001270329607
I146: MW108S | J146: 18HD08(47) | K146: MW132S | L146: 0.001410702826 | M146: 185.4204952 | Q146: 0.3932605725 | R146: 1.203532549 | S146: 3.060394641 | T146: 0.4239577453 | U146: 2.741332781 | V146: 3.970794755 | W146: 288 | AF146: 185.4204952 | AO146: =L146*Input!$E$5/Input!$E$7 -> 11.75585688 | AY146: 541777.0549 | AZ146: 0.001410702826
I147: MW108S | J147: 18HD09(62) | K147: HAH | L147: 0.001811913212 | M147: 194.4385527 | Q147: 2.553381791 | R147: 2.473445727 | S147: 0.9686940417 | T147: 2.655385553 | U147: 0.4072828043 | V147: 2.49172922 | W147: 83 | AF147: 194.4385527 | AO147: =L147*Input!$E$5/Input!$E$7 -> 15.09927677 | AY147: 44500.48791 | AZ147: 0.001811913212
I148: MW108S | J148: 18HD09(62) | K148: 18HD03(57) | L148: 0.001605494664 | M148: 182.6888701 | Q148: 0.4459449512 | R148: 1.348915494 | S148: 3.024847553 | T148: 0.6210108083 | U148: 3.122745967 | V148: 5.682064282 | W148: 234 | AF148: 182.6888701 | AO148: =L148*Input!$E$5/Input!$E$7 -> 13.3791222 | AY148: 190280.0259 | AZ148: 0.001605494664
I149: MW108S | J149: 18HD09(62) | K149: MW132S | L149: 0.001508305596 | M149: 172.6161078 | Q149: 0.2836148926 | R149: 1.210129575 | S149: 4.266805472 | T149: 0.3853226294 | U149: 4.79034124 | V149: 7.01504081 | W149: 288 | AF149: 172.6161078 | AO149: =L149*Input!$E$5/Input!$E$7 -> 12.5692133 | AY149: 306667.5656 | AZ149: 0.001508305596
I150: MW108S | J150: 18HD03(57) | K150: MW125S | L150: 0.001593602915 | M150: 193.3970893 | Q150: 2.210043607 | R150: 1.99243667 | S150: 0.9015372653 | T150: 2.451981427 | U150: 0.5020136086 | V150: 1.992895573 | W150: 234 | AF150: 193.3970893 | AO150: =L150*Input!$E$5/Input!$E$7 -> 13.28002429 | AY150: 440942.7115 | AZ150: 0.001593602915
I151: MW108S | J151: MW125S | K151: MW133S | L151: 0.00139851231 | M151: 154.1850558 | Q151: 0.9962431886 | R151: 1.92347663 | S151: 1.930730019 | T151: 1.932329618 | U151: 1.946930642 | V151: 7.203180682 | W151: 325 | AF151: 154.1850558 | AO151: =L151*Input!$E$5/Input!$E$7 -> 11.65426925 | AY151: 454763.3952 | AZ151: 0.00139851231
I152: MW108S | J152: MW125S | K152: MW132S | L152: 0.001440984402 | M152: 180.0924059 | Q152: 1.118066887 | R152: 1.749377168 | S152: 1.564644466 | T152: 1.199584778 | U152: 0.9596113477 | V152: 2.936718256 | W152: 288 | AF152: 180.0924059 | AO152: =L152*Input!$E$5/Input!$E$7 -> 12.00820335 | AY152: 732547.456 | AZ152: 0.001440984402
I153: MW108S | J153: MW133S | K153: MW132S | L153: 0.001404425529 | M153: 204.2638421 | Q153: 3.102703895 | R153: 2.514400476 | S153: 0.8103900859 | T153: 4.307610762 | U153: 0.4474616211 | V153: 2.828946225 | W153: 325 | AF153: 204.2638421 | AO153: =L153*Input!$E$5/Input!$E$7 -> 11.70354608 | AY153: 760454.7123 | AZ153: 0.001404425529
I154: HR6 | J154: HR13 | K154: 18HD06 | L154: 0.001550586118 | M154: 197.1349129 | Q154: 0.8286661697 | R154: 0.5065556408 | S154: 0.6112903595 | T154: 1.639629355 | U154: 2.387736876 | V154: 0.6126899807 | W154: 32 | AF154: 197.1349129 | AO154: =L154*Input!$E$5/Input!$E$7 -> 12.92155098 | AY154: 37091.25797 | AZ154: 0.001550586118
I155: HR6 | J155: HR13 | K155: 18HD08(47) | L155: 0.001986145655 | M155: 199.4907225 | Q155: 1.379440476 | R155: 1.884590222 | S155: 1.366199016 | T155: 1.419246577 | U155: 0.7458507401 | V155: 2.649023383 | W155: 60 | AF155: 199.4907225 | AO155: =L155*Input!$E$5/Input!$E$7 -> 16.55121379 | AY155: 42850.84521 | AZ155: 0.001986145655
I156: HR6 | J156: HR13 | K156: 18HD09(62) | L156: 0.001820640239 | M156: 198.7300757 | Q156: 0.9206142483 | R156: 1.805727784 | S156: 1.961438015 | T156: 1.436075958 | U156: 1.694423738 | V156: 5.524927554 | W156: 62 | AF156: 198.7300757 | AO156: =L156*Input!$E$5/Input!$E$7 -> 15.17200199 | AY156: 42348.67595 | AZ156: 0.001820640239
I157: HR6 | J157: HR13 | K157: 18HD03(57) | L157: 0.001417494627 | M157: 196.120923 | Q157: 0.3994863553 | R157: 1.166419201 | S157: 2.91979735 | T157: 0.4127537475 | U157: 2.58634898 | V157: 3.518815085 | W157: 111 | AF157: 196.120923 | AO157: =L157*Input!$E$5/Input!$E$7 -> 11.81245523 | AY157: 147341.8854 | AZ157: 0.001417494627
I158: HR6 | J158: HR13 | K158: MW125S | L158: 0.001373383193 | M158: 195.7405496 | Q158: 0.7389078599 | R158: 0.8446257452 | S158: 1.143073164 | T158: 0.8943574624 | U158: 1.638062856 | V158: 1.168582001 | W158: 60 | AF158: 195.7405496 | AO158: =L158*Input!$E$5/Input!$E$7 -> 11.44485994 | AY158: 67999.56161 | AZ158: 0.001373383193
I159: HR6 | J159: HR13 | K159: MW133S | L159: 0.001138184252 | M159: 193.2001 | Q159: 0.1959850271 | R159: 0.9551009917 | S159: 4.87333653 | T159: 0.2070062751 | U159: 5.389366571 | V159: 4.91627668 | W159: 202 | AF159: 193.2001 | AO159: =L159*Input!$E$5/Input!$E$7 -> 9.484868768 | AY159: 293787.7866 | AZ159: 0.001138184252
I160: HR6 | J160: HR13 | K160: MW132S | L160: 0.001200862842 | M160: 193.9772365 | Q160: 0.2345661124 | R160: 1.060927558 | S160: 4.522936186 | T160: 0.237264055 | U160: 4.312224954 | V160: 4.853699324 | W160: 165 | AF160: 193.9772365 | AO160: =L160*Input!$E$5/Input!$E$7 -> 10.00719035 | AY160: 256321.6554 | AZ160: 0.001200862842
I161: HR6 | J161: HAS | K161: 18HD08(47) | L161: 0.00127273849 | M161: 140.4905554 | Q161: 1.319819207 | R161: 0.4111963776 | S161: 0.3115550793 | T161: 5.904111704 | U161: 3.38942226 | V161: 0.5730918571 | W161: 177 | AF161: 140.4905554 | AO161: =L161*Input!$E$5/Input!$E$7 -> 10.60615408 | AY161: 198071.0239 | AZ161: 0.00127273849
I162: HR6 | J162: HAS | K162: 18HD09(62) | L162: 0.001230852633 | M162: 96.00758763 | Q162: 1.633746821 | R162: 0.7307691609 | S162: 0.4472964547 | T162: 5.798239879 | U162: 2.17233434 | V162: 1.160077732 | W162: 177 | AF162: 96.00758763 | AO162: =L162*Input!$E$5/Input!$E$7 -> 10.25710527 | AY162: 201687.663 | AZ162: 0.001230852633
I163: HR6 | J163: HAS | K163: 18HD03(57) | L163: 0.002361186958 | M163: 176.5550448 | Q163: 1.227039135 | R163: 0.8170186913 | S163: 0.6658456668 | T163: 1.851940002 | U163: 1.230014082 | V163: 0.8210584369 | W163: 278 | AF163: 176.5550448 | AO163: =L163*Input!$E$5/Input!$E$7 -> 19.67655798 | AY163: 631464.0051 | AZ163: 0.002361186958
I164: HR6 | J164: HAS | K164: MW125S | L164: 0.001956842415 | M164: 169.6466661 | Q164: 1.029834798 | R164: 0.2684494134 | S164: 0.2606723076 | T164: 3.95159481 | U164: 3.725952217 | V164: 0.2685110727 | W164: 227 | AF164: 169.6466661 | AO164: =L164*Input!$E$5/Input!$E$7 -> 16.30702013 | AY164: 295939.616 | AZ164: 0.001956842415
I165: HR6 | J165: HAS | K165: MW133S | L165: 0.001542615593 | M165: 157.2932566 | Q165: 0.6381510588 | R165: 0.7092033277 | S165: 1.111340831 | T165: 0.9042745071 | U165: 2.220512893 | V165: 1.116849949 | W165: 369 | AF165: 157.2932566 | AO165: =L165*Input!$E$5/Input!$E$7 -> 12.85512994 | AY165: 1293228.374 | AZ165: 0.001542615593
I166: HR6 | J166: HAS | K166: MW132S | L166: 0.001945520703 | M166: 169.4017173 | Q166: 0.8935164095 | R166: 0.9216029599 | S166: 1.031433726 | T166: 1.054502011 | U166: 1.320816078 | V166: 1.121837798 | W166: 332 | AF166: 169.4017173 | AO166: =L166*Input!$E$5/Input!$E$7 -> 16.21267253 | AY166: 1108991.2 | AZ166: 0.001945520703
I167: HR6 | J167: 18HD06 | K167: 18HD08(47) | L167: 0.001633694742 | M167: 188.4120685 | Q167: 0.5029220791 | R167: 1.124002103 | S167: 2.234942847 | T167: 0.5029492239 | U167: 1.988486916 | V167: 2.512216048 | W167: 60 | AF167: 188.4120685 | AO167: =L167*Input!$E$5/Input!$E$7 -> 13.61412285 | AY167: 45184.36662 | AZ167: 0.001633694742
I168: HR6 | J168: 18HD06 | K168: 18HD09(62) | L168: 0.00157917408 | M168: 193.5605713 | Q168: 0.3256815384 | R168: 1.045009365 | S168: 3.208684685 | T168: 0.3257570485 | U168: 3.071196044 | V168: 3.353882971 | W168: 62 | AF168: 193.5605713 | AO168: =L168*Input!$E$5/Input!$E$7 -> 13.159784 | AY168: 69761.93525 | AZ168: 0.00157917408
I169: HR6 | J169: 18HD06 | K169: HAH | L169: 0.001571727818 | M169: 194.4101506 | Q169: 0.2613319593 | R169: 0.9924055707 | S169: 3.797490263 | T169: 0.2647259676 | U169: 3.876247467 | V169: 3.817595257 | W169: 50 | AF169: 194.4101506 | AO169: =L169*Input!$E$5/Input!$E$7 -> 13.09773182 | AY169: 85845.15652 | AZ169: 0.001571727818
I170: HR6 | J170: 18HD08(47) | K170: HAH | L170: 0.001981965432 | M170: 199.3915756 | Q170: 1.177915516 | R170: 2.001448363 | S170: 1.699144239 | T170: 1.620875207 | U170: 1.168211008 | V170: 4.679614457 | W170: 60 | AF170: 199.3915756 | AO170: =L170*Input!$E$5/Input!$E$7 -> 16.5163786 | AY170: 70031.85098 | AZ170: 0.001981965432
I171: HR6 | J171: 18HD08(47) | K171: 18HD03(57) | L171: 0.001643697017 | M171: 188.8320539 | Q171: 0.4322228646 | R171: 0.9237330429 | S171: 2.137168388 | T171: 0.4684999468 | U171: 2.507806775 | V171: 2.139868223 | W171: 161 | AF171: 188.8320539 | AO171: =L171*Input!$E$5/Input!$E$7 -> 13.69747514 | AY171: 242290.0829 | AZ171: 0.001643697017
I172: HR6 | J172: 18HD08(47) | K172: MW125S | L172: 0.001543177236 | M172: 184.1502249 | Q172: 0.6672157704 | R172: 0.5582469557 | S172: 0.8366812963 | T172: 1.264471203 | U172: 2.840379291 | V172: 0.8851748465 | W172: 110 | AF172: 184.1502249 | AO172: =L172*Input!$E$5/Input!$E$7 -> 12.8598103 | AY172: 89771.03684 | AZ172: 0.001543177236
I173: HR6 | J173: 18HD08(47) | K173: MW133S | L173: 0.00133385676 | M173: 168.0912212 | Q173: 0.2345498313 | R173: 0.8366572127 | S173: 3.567076592 | T173: 0.3588378597 | U173: 6.522709064 | V173: 4.565865633 | W173: 252 | AF173: 168.0912212 | AO173: =L173*Input!$E$5/Input!$E$7 -> 11.115473 | AY173: 316334.7676 | AZ173: 0.00133385676
I174: HR6 | J174: 18HD08(47) | K174: MW132S | L174: 0.001481366683 | M174: 180.6195009 | Q174: 0.2764594301 | R174: 0.9152461285 | S174: 3.310598333 | T174: 0.3065076177 | U174: 4.010314715 | V174: 3.359342287 | W174: 215 | AF174: 180.6195009 | AO174: =L174*Input!$E$5/Input!$E$7 -> 12.34472236 | AY174: 370342.8051 | AZ174: 0.001481366683
I175: HR6 | J175: 18HD09(62) | K175: HAH | L175: 0.001685076624 | M175: 196.0472619 | Q175: 3.592963361 | R175: 4.252285506 | S175: 1.18350372 | T175: 4.413149263 | U175: 0.3418558683 | V175: 6.181414571 | W175: 62 | AF175: 196.0472619 | AO175: =L175*Input!$E$5/Input!$E$7 -> 14.0423052 | AY175: 53017.32452 | AZ175: 0.001685076624
I176: HR6 | J176: 18HD09(62) | K176: 18HD03(57) | L176: 0.001527783009 | M176: 192.1983244 | Q176: 0.6275065783 | R176: 0.9341065232 | S176: 1.488600368 | T176: 0.6898075204 | U176: 1.751827577 | V176: 1.528565906 | W176: 163 | AF176: 192.1983244 | AO176: =L176*Input!$E$5/Input!$E$7 -> 12.73152507 | AY176: 339186.4538 | AZ176: 0.001527783009
I177: HR6 | J177: 18HD09(62) | K177: MW125S | L177: 0.001447663322 | M177: 189.8246404 | Q177: 0.8116533502 | R177: 0.4730096776 | S177: 0.5827730243 | T177: 1.736378128 | U177: 2.635743447 | V177: 0.5897163761 | W177: 112 | AF177: 189.8246404 | AO177: =L177*Input!$E$5/Input!$E$7 -> 12.06386102 | AY177: 134747.9347 | AZ177: 0.001447663322
I178: HR6 | J178: 18HD09(62) | K178: MW133S | L178: 0.001205208162 | M178: 179.81976 | Q178: 0.3238559183 | R178: 0.8046437692 | S178: 2.484573305 | T178: 0.4574324776 | U178: 4.361373898 | V178: 2.823778489 | W178: 254 | AF178: 179.81976 | AO178: =L178*Input!$E$5/Input!$E$7 -> 10.04340135 | AY178: 511492.686 | AZ178: 0.001205208162
I179: HR6 | J179: 18HD09(62) | K179: MW132S | L179: 0.00134240819 | M179: 186.1188857 | Q179: 0.3990856054 | R179: 0.920262946 | S179: 2.305928687 | T179: 0.4336799726 | U179: 2.722934784 | V179: 2.306009601 | W179: 217 | AF179: 186.1188857 | AO179: =L179*Input!$E$5/Input!$E$7 -> 11.18673492 | AY179: 539506.9669 | AZ179: 0.00134240819
I180: HR6 | J180: HAH | K180: 18HD03(57) | L180: 0.001497573839 | M180: 193.1922241 | Q180: 0.8026779773 | R180: 1.009601162 | S180: 1.257791033 | T180: 0.8714317639 | U180: 1.352541785 | V180: 1.378638412 | W180: 151 | AF180: 193.1922241 | AO180: =L180*Input!$E$5/Input!$E$7 -> 12.47978199 | AY180: 376073.12 | AZ180: 0.001497573839
I181: HR6 | J181: HAH | K181: MW125S | L181: 0.001420573276 | M181: 191.7783106 | Q181: 0.9113430881 | R181: 0.4487574973 | S181: 0.4924133437 | T181: 2.03236326 | U181: 2.447020046 | V181: 0.4927889509 | W181: 100 | AF181: 191.7783106 | AO181: =L181*Input!$E$5/Input!$E$7 -> 11.83811064 | AY181: 161251.7156 | AZ181: 0.001420573276
I182: HR6 | J182: HAH | K182: MW133S | L182: 0.001167394511 | M182: 185.6073436 | Q182: 0.3875440756 | R182: 0.8135856676 | S182: 2.099337131 | T182: 0.4990050284 | U182: 3.322482618 | V182: 2.199223139 | W182: 242 | AF182: 185.6073436 | AO182: =L182*Input!$E$5/Input!$E$7 -> 9.728287595 | AY182: 656751.0219 | AZ182: 0.001167394511
I183: HR6 | J183: HAH | K183: MW132S | L183: 0.001286593877 | M183: 188.8608239 | Q183: 0.498870611 | R183: 0.9719952992 | S183: 1.948391582 | T183: 0.5237920995 | U183: 2.104665605 | V183: 1.988435155 | W183: 205 | AF183: 188.8608239 | AO183: =L183*Input!$E$5/Input!$E$7 -> 10.72161564 | AY183: 625672.0227 | AZ183: 0.001286593877
I184: HR6 | J184: 18HD03(57) | K184: MW125S | L184: 0.001335717913 | M184: 199.6662284 | Q184: 1.530426597 | R184: 0.5991475992 | S184: 0.391490582 | T184: 6.838923509 | U184: 2.919864763 | V184: 1.048166762 | W184: 101 | AF184: 199.6662284 | AO184: =L184*Input!$E$5/Input!$E$7 -> 11.13098261 | AY184: 75811.47066 | AZ184: 0.001335717913
I185: HR6 | J185: 18HD03(57) | K185: MW133S | L185: 0.001150901641 | M185: 211.2358337 | Q185: 0.8818874336 | R185: 1.47192895 | S185: 1.669066701 | T185: 0.9041336003 | U185: 1.162535706 | V185: 2.518720603 | W185: 192 | AF185: 211.2358337 | AO185: =L185*Input!$E$5/Input!$E$7 -> 9.590847011 | AY185: 573442.7399 | AZ185: 0.001150901641
I186: HR6 | J186: 18HD03(57) | K186: MW132S | L186: 0.0009941646067 | M186: 237.8041295 | Q186: 1.629352713 | R186: 2.52396227 | S186: 1.549058254 | T186: 2.94762827 | U186: 1.110305514 | V186: 7.073074193 | W186: 155 | AF186: 237.8041295 | AO186: =L186*Input!$E$5/Input!$E$7 -> 8.284705056 | AY186: 175893.5665 | AZ186: 0.0009941646067
I187: HR6 | J187: MW133S | K187: MW132S | L187: 0.001129757166 | M187: 199.497182 | Q187: 2.060252516 | R187: 1.912117211 | S187: 0.9280984717 | T187: 2.23283142 | U187: 0.5260354691 | V187: 1.923286795 | W187: 192 | AF187: 199.497182 | AO187: =L187*Input!$E$5/Input!$E$7 -> 9.414643047 | AY187: 646865.6931 | AZ187: 0.001129757166
I188: HR13 | J188: HAS | K188: 18HD08(47) | L188: 0.002239746475 | M188: 166.193124 | Q188: 1.019051778 | R188: 0.2181887462 | S188: 0.214109578 | T188: 4.760531411 | U188: 4.58419341 | V188: 0.2182366196 | W188: 167 | AF188: 166.193124 | AO188: =L188*Input!$E$5/Input!$E$7 -> 18.66455396 | AY188: 146448.0831 | AZ188: 0.002239746475
I189: HR13 | J189: HAS | K189: 18HD09(62) | L189: 0.001495276089 | M189: 134.2957724 | Q189: 1.261439897 | R189: 0.4046950861 | S189: 0.3208199512 | T189: 4.630305462 | U189: 2.909889632 | V189: 0.4765762322 | W189: 167 | AF189: 134.2957724 | AO189: =L189*Input!$E$5/Input!$E$7 -> 12.46063407 | AY189: 150566.8914 | AZ189: 0.001495276089
I190: HR13 | J190: HAS | K190: HAH | L190: 0.002024829816 | M190: 69.65348729 | Q190: 1.565461439 | R190: 0.6225867123 | S190: 0.3977017236 | T190: 7.559598681 | U190: 3.084707518 | V190: 1.195676481 | W190: 167 | AF190: 69.65348729 | AO190: =L190*Input!$E$5/Input!$E$7 -> 16.8735818 | AY190: 92223.24216 | AZ190: 0.002024829816
I191: HR13 | J191: HAS | K191: 18HD03(57) | L191: 0.002259546682 | M191: 166.6007974 | Q191: 0.9474149239 | R191: 0.70045031 | S191: 0.7393279253 | T191: 1.414442852 | U191: 1.575814028 | V191: 0.7731426401 | W191: 278 | AF191: 166.6007974 | AO191: =L191*Input!$E$5/Input!$E$7 -> 18.82955568 | AY191: 492894.2153 | AZ191: 0.002259546682
I192: HR13 | J192: HAS | K192: MW125S | L192: 0.001543384178 | M192: 138.9525541 | Q192: 0.7951505612 | R192: 0.3178323831 | S192: 0.3997134613 | T192: 2.945225667 | U192: 4.658218297 | V192: 0.4705612115 | W192: 227 | AF192: 138.9525541 | AO192: =L192*Input!$E$5/Input!$E$7 -> 12.86153482 | AY192: 236712.15 | AZ192: 0.001543384178
I193: HR13 | J193: HAS | K193: MW133S | L193: 0.001609490657 | M193: 143.8630438 | Q193: 0.4927257977 | R193: 0.7425427613 | S193: 1.507010115 | T193: 0.6914916975 | U193: 2.848238598 | V193: 1.57043261 | W193: 369 | AF193: 143.8630438 | AO193: =L193*Input!$E$5/Input!$E$7 -> 13.41242214 | AY193: 1008212.683 | AZ193: 0.001609490657
I194: HR13 | J194: HAS | K194: MW132S | L194: 0.001995713861 | M194: 160.2242442 | Q194: 0.6898971326 | R194: 0.8686766153 | S194: 1.259139333 | T194: 0.8093069422 | U194: 1.70037451 | V194: 1.28310101 | W194: 332 | AF194: 160.2242442 | AO194: =L194*Input!$E$5/Input!$E$7 -> 16.63094884 | AY194: 861441.6403 | AZ194: 0.001995713861
I195: HR13 | J195: 18HD06 | K195: 18HD08(47) | L195: 0.001978269317 | M195: 192.755096 | Q195: 0.992826925 | R195: 0.5964172425 | S195: 0.6007262973 | T195: 1.738462717 | U195: 1.763673901 | V195: 0.627362664 | W195: 50 | AF195: 192.755096 | AO195: =L195*Input!$E$5/Input!$E$7 -> 16.48557764 | AY195: 50943.95386 | AZ195: 0.001978269317
I196: HR13 | J196: 18HD06 | K196: 18HD09(62) | L196: 0.001727509193 | M196: 195.0468768 | Q196: 0.6429333961 | R196: 0.5787192146 | S196: 0.9001231203 | T196: 1.180550893 | U196: 2.855964099 | V196: 0.9565078706 | W196: 52 | AF196: 195.0468768 | AO196: =L196*Input!$E$5/Input!$E$7 -> 14.39590994 | AY196: 75019.35323 | AZ196: 0.001727509193
I197: HR13 | J197: 18HD06 | K197: HAH | L197: 0.001721100989 | M197: 195.1146168 | Q197: 0.5158998109 | R197: 0.5756564701 | S197: 1.115829969 | T197: 1.218592984 | U197: 4.578549735 | V197: 1.517241512 | W197: 40 | AF197: 195.1146168 | AO197: =L197*Input!$E$5/Input!$E$7 -> 14.34250824 | AY197: 72677.39564 | AZ197: 0.001721100989
I198: HR13 | J198: 18HD06 | K198: 18HD03(57) | L198: 0.001377429146 | M198: 199.7360756 | Q198: 0.3485249999 | R198: 0.7229555476 | S198: 2.074329095 | T198: 0.6808702149 | U198: 5.605269065 | V198: 2.929676408 | W198: 133 | AF198: 199.7360756 | AO198: =L198*Input!$E$5/Input!$E$7 -> 11.47857621 | AY198: 130074.9577 | AZ198: 0.001377429146
I199: HR13 | J199: 18HD06 | K199: MW125S | L199: 0.001410583356 | M199: 199.1847726 | Q199: 0.689432193 | R199: 0.7731804812 | S199: 1.121474293 | T199: 0.8937883366 | U199: 1.880405727 | V199: 1.124121693 | W199: 82 | AF199: 199.1847726 | AO199: =L199*Input!$E$5/Input!$E$7 -> 11.7548613 | AY199: 99088.52107 | AZ199: 0.001410583356
I200: HR13 | J200: 18HD06 | K200: MW133S | L200: 0.001174384025 | M200: 203.8639437 | Q200: 0.2204607172 | R200: 0.9321545675 | S200: 4.228211625 | T200: 0.2414183092 | U200: 4.967155681 | V200: 4.316021861 | W200: 224 | AF200: 203.8639437 | AO200: =L200*Input!$E$5/Input!$E$7 -> 9.78653354 | AY200: 366849.4106 | AZ200: 0.001174384025
... 75 more rows

Sheet MatrixCalculator
G2: gradient | H2: angle on x | J2: A | K2: B | L2: C | AO2: =-L2*Input!$E$5/Input!$E$7 -> 
G3: =((F51^2+F52^2)/F53^2)^0.5 -> 0.001469626747 | H3: =ATAN(F52/F51)*180/PI() -> -5.190077762 | J3: =F51 -> -1.890589813e-06 | K3: =F52 -> 1.717270408e-07 | L3: =-F53 -> -0.001291738188
H4: =IF(M9>N9,H3,H3+180) -> 174.8099222 | M4: x | N4: y | O4: H
A5: Data Points Input | M5: 0 | N5: 0 | O5: =(J3*M5+K3*N5-1)/L3 -> 774.1506823
A6: # | B6: x | C6: y | D6: z | E6: D | F6: calc z | M6: Determine if plane dips to the east or west
A7: 18HD07 | B7: 601.294 | C7: 0 | D7: 774.75 | E7: 1 | F7: =(B7*$J$3+C7*$K$3-E7)/$L$3 -> 775.0307371 | M7: west x | N7: east x | O7: north y | P7: south y
A8: 18HD05(65) | B8: 235.605 | C8: 213.953 | D8: 774.42 | E8: 1 | F8: =(B8*$J$3+C8*$K$3-E8)/$L$3 -> 774.4670707 | M8: -1000000 | N8: 1000000 | O8: 1000000 | P8: -1000000
A9: MW108S | B9: 0 | C9: 876.464 | D9: 774.18 | E9: 1 | F9: 774.0341629 | H9: 1 | M9: =(-1)*(1-$J$3*M8)/$L$3 -> -689.4507114 | N9: =(-1)*(1-$J$3*N8)/$L$3 -> 2237.752076 | O9: =(-1)*(1-$K$3*O8)/$L$3 -> 641.2080765 | P9: =(-1)*(1-$K$3*P8)/$L$3 -> 907.0932881
A10: HR6 | B10: 964.229 | C10: 243.024 | D10: 775.51 | E10: 1 | F10: 775.529621 | M10: flow direction E-W | N10: =IF(N9=M9,"ND",IF(N9>M9,"west","east")) -> west | O10: flow direction N-S | P10: =IF(P9=O9,"ND",IF(P9>O9,"north","south")) -> north
A11: HR13 | B11: 801.62 | C11: 551.553 | D11: 775.41 | E11: 1 | F11: 775.2506096
A12: HAS | B12: 296.061 | C12: 1618.676 | D12: 773.74 | E12: 1 | F12: 774.3688066
A13: 18HD06 | B13: 782.774 | C13: 131.109 | D13: 775.19 | E13: 1 | F13: 775.2789215
A14: 18HD08(47) | B14: 556.508 | C14: 489.579 | D14: 774.91 | E14: 1 | F14: 774.9001023
A15: 18HD09(62) | B15: 451.216 | C15: 695.533 | D15: 774.89 | E15: 1 | F15: 774.7186167
A16: HAH | B16: 470.845 | C16: 884.909 | D16: 775.01 | E16: 1 | F16: 774.7221696
A17: 18HD03(57) | B17: 1446.736 | C17: 1139.754 | D17: 776.52 | E17: 1 | F17: 776.1166053
A18: MW125S | B18: 1270.577 | C18: 498.126 | D18: 776.01 | E18: 1 | F18: 775.9440784
A19: MW133S | B19: 2559.17 | C19: 830.261 | D19: 777.43 | E19: 1 | F19: 777.78591
A20: MW132S | B20: 1997.736 | C20: 1434.695 | D20: 777.06 | E20: 1 | F20: 776.8838394
B21: 0 | C21: 0 | D21: 0 | E21: 1 | F21: 774.1506823
B22: 0 | C22: 0 | D22: 0 | E22: 1 | F22: 774.1506823
B23: 0 | C23: 0 | D23: 0 | E23: 1 | F23: 774.1506823
B24: 0 | C24: 0 | D24: 0 | E24: 1 | F24: 774.1506823
B25: 0 | C25: 0 | D25: 0 | E25: 1 | F25: 774.1506823
B26: 0 | C26: 0 | D26: 0 | E26: 1 | F26: 774.1506823
F30: Pt
F31: =TRANSPOSE(B7:D26) -> 601.294 | G31: 235.605 | H31: 0 | I31: 964.229 | J31: 801.62 | K31: 296.061 | L31: 782.774 | M31: 556.508 | N31: 451.216 | O31: 470.845 | P31: 1446.736 | Q31: 1270.577 | R31: 2559.17 | S31: 1997.736 | T31: 0 | U31: 0 | V31: 0 | W31: 0 | X31: 0 | Y31: 0
F32: 0 | G32: 213.953 | H32: 876.464 | I32: 243.024 | J32: 551.553 | K32: 1618.676 | L32: 131.109 | M32: 489.579 | N32: 695.533 | O32: 884.909 | P32: 1139.754 | Q32: 498.126 | R32: 830.261 | S32: 1434.695 | T32: 0 | U32: 0 | V32: 0 | W32: 0 | X32: 0 | Y32: 0
F33: 774.75 | G33: 774.42 | H33: 774.18 | I33: 775.51 | J33: 775.41 | K33: 773.74 | L33: 775.19 | M33: 774.91 | N33: 774.89 | O33: 775.01 | P33: 776.52 | Q33: 776.01 | R33: 777.43 | S33: 777.06 | T33: 0 | U33: 0 | V33: 0 | W33: 0 | X33: 0 | Y33: 0
F35: {[P]t[P]}
F36: =MMULT(F31:Y33,B7:D26) -> 17672486.86 | G36: 9584427.354 | H36: 9650668.092
F37: 9584427.354 | G37: 9615907.422 | H37: 7450507.382
F38: 9650668.092 | G38: 7450507.382 | H38: 8416563.123
F40: {[P]t[P]}'
F41: =MINVERSE(F36:H38) -> 1.600596401e-07 | G41: -5.51871262e-08 | H41: -1.346761562e-07
F42: -5.51871262e-08 | G42: 3.500911923e-07 | H42: -2.466285044e-07
F43: -1.346761562e-07 | G43: -2.466285044e-07 | H43: 4.915572207e-07
F45: {[P]t[P]}'[P]t
F46: =MMULT(F41:H43,F31:Y33) -> -8.097450822e-06 | G46: -7.839250862e-05 | H46: -0.000152633116 | I46: 3.647964461e-05 | J46: -6.560854646e-06 | K46: -0.0001461469887 | L46: 1.365538622e-05 | M46: -4.23058881e-05 | N46: -7.052220359e-05 | O46: -7.784767126e-05 | P46: 6.408556676e-05 | Q46: 7.136791087e-05 | R46: 0.0002590988263 | S46: 0.0001359287571 | T46: 0 | U46: 0 | V46: 0 | W46: 0 | X46: 0 | Y46: 0
F47: -0.0002242591216 | G47: -0.0001290933484 | H47: 0.0001159074713 | I47: -0.000159395337 | J47: -4.23834653e-05 | K47: 0.0003595191161 | L47: -0.0001884828917 | M47: -5.042967572e-05 | N47: 2.748870117e-05 | O47: 9.267470728e-05 | P47: 0.0001276646684 | Q47: -8.711615367e-05 | R47: -4.230257249e-05 | S47: 0.0002003796288 | T47: 0 | U47: 0 | V47: 0 | W47: 0 | X47: 0 | Y47: 0
F48: 0.000299853992 | G48: 0.0002961744587 | H48: 0.0001643927636 | I48: 0.0001914122391 | J48: 0.0001371705927 | K48: -5.874651454e-05 | L48: 0.0002432940318 | M48: 0.000185220111 | N48: 0.0001485964747 | O48: 9.930638363e-05 | P48: -9.423265494e-05 | Q48: 8.74848219e-05 | R48: -0.0001672738773 | S48: -0.0002409146338 | T48: 0 | U48: 0 | V48: 0 | W48: 0 | X48: 0 | Y48: 0
F50: {[P]t[P]}'[P]t [D]
F51: =MMULT(F46:Y48,E7:E26) -> -1.890589813e-06 | G51: A
F52: 1.717270408e-07 | G52: B
F53: 0.001291738188 | G53: C

Sheet Reject
A1: Well A | B1: Well B | C1: Well C | E1: AB/BC | F1: AC/BC | G1: AC/AB | H1: AB/H1 | I1: BC/H2 | J1: AC/H3 | K1: Max DWL (cm) | L1: DWL Min.
A2: 18HD07 | B2: HR6 | C2: 18HD06 | E2: 2.048792969 | F2: 1.050156729 | G2: 0.5125733759 | H2: 54.82177324 | I2: 13.06041354 | J2: 14.40340483 | K2: 76 | L2: 0.01414213562 | M2: Reject on ratio > 8
A3: 18HD07 | B3: HR6 | C3: 18HD03(57) | E3: 0.4289364092 | F3: 1.39358371 | G3: 3.248928465 | H3: 0.9163691117 | I3: 4.980633878 | J3: 9.672767305 | K3: 177 | L3: 0.01414213562 | M3: Reject on ratio > 8
A4: 18HD07 | B4: HR6 | C4: MW125S | E4: 1.095649369 | F4: 2.092804075 | G4: 1.910103848 | H4: 10.51981936 | I4: 8.763247883 | J4: 38.38152632 | K4: 126 | L4: 0.01414213562 | M4: Reject on ratio > 8
A5: 18HD07 | B5: HR6 | C5: MW133S | E5: 0.2569917721 | F5: 1.251251552 | G5: 4.86883896 | H5: 1.093434149 | I5: 16.55595339 | J5: 25.9205047 | K5: 268 | L5: 0.01414213562 | M5: Reject on ratio > 8
A6: 18HD07 | B6: HR6 | C6: MW132S | E6: 0.2769014064 | F6: 1.269233262 | G6: 4.583701031 | H6: 1.052116361 | I6: 13.72187475 | J6: 22.1052963 | K6: 231 | L6: 0.01414213562 | M6: Reject on ratio > 8
A7: 18HD07 | B7: HR13 | C7: 18HD03(57) | E7: 0.6721602632 | F7: 1.625502798 | G7: 2.418326234 | H7: 1.446910865 | I7: 3.202551404 | J7: 8.461971377 | K7: 177 | L7: 0.01414213562 | M7: Reject on ratio > 8
A8: 18HD07 | B8: HR13 | C8: MW132S | E8: 0.3946718524 | F8: 1.346564545 | G8: 3.411858577 | H8: 0.7132096241 | I8: 4.578728442 | J8: 8.302315577 | K8: 231 | L8: 0.01414213562 | M8: Reject on ratio > 8
A9: 18HD07 | B9: HAS | C9: 18HD06 | E9: 1.05241442 | F9: 0.1430424161 | G9: 0.1359183354 | H9: 8.12903939 | I9: 7.339486027 | J9: 0.1501741982 | K9: 145 | L9: 0.01414213562 | M9: Reject on ratio > 8
A10: 18HD07 | B10: HAS | C10: 18HD08(47) | E10: 1.421539498 | F10: 0.4242717061 | G10: 0.298459316 | H10: 35.26411773 | I10: 17.45079274 | J10: 3.141255786 | K10: 117 | L10: 0.01414213562 | M10: Reject on ratio > 8
A11: 18HD07 | B11: HAS | C11: 18HD09(62) | E11: 1.759661947 | F11: 0.7601188238 | G11: 0.4319686659 | H11: 88.58809895 | I11: 28.60993671 | J11: 16.53026715 | K11: 115 | L11: 0.01414213562 | M11: Reject on ratio > 8
A12: 18HD07 | B12: HAS | C12: HAH | E12: 2.183760741 | F12: 1.185836351 | G12: 0.5430248509 | H12: 46.02775405 | I12: 9.651830257 | J12: 13.57247948 | K12: 127 | L12: 0.01414213562 | M12: Reject on ratio > 8
A13: 18HD07 | B13: 18HD06 | C13: 18HD03(57) | E13: 0.18540234 | F13: 1.175166265 | G13: 6.338465121 | H13: 0.5221444297 | I13: 15.19008581 | J13: 20.97774776 | K13: 177 | L13: 0.01414213562 | M13: Reject on ratio > 8
A14: 18HD07 | B14: 18HD06 | C14: MW125S | E14: 0.3667522899 | F14: 1.366701809 | G14: 3.726498366 | H14: 18.90863766 | I14: 140.5770972 | J14: 262.5802817 | K14: 126 | L14: 0.01414213562 | M14: Reject on ratio > 8
A15: 18HD07 | B15: 18HD06 | C15: MW133S | E15: 0.1172769037 | F15: 1.113991449 | G15: 9.498813612 | H15: 0.4727866893 | I15: 34.37480621 | J15: 42.65834212 | K15: 268 | L15: 0.01414213562 | M15: Reject on ratio > 8
A16: 18HD07 | B16: 18HD06 | C16: MW132S | E16: 0.1256380945 | F16: 1.123521997 | G16: 8.942526565 | H16: 0.6485901423 | I16: 41.08919774 | J16: 51.86696329 | K16: 231 | L16: 0.01414213562 | M16: Reject on ratio > 8
A17: 18HD07 | B17: 18HD08(47) | C17: 18HD09(62) | E17: 2.12540386 | F17: 3.076157522 | G17: 1.447328472 | H17: 5.710430612 | I17: 1.264113091 | J17: 11.96197995 | K17: 16 | L17: 0.01414213562 | M17: Reject on ratio > 8
A18: 18HD07 | B18: 18HD08(47) | C18: HAH | E18: 1.215371177 | F18: 2.21127878 | G18: 1.819426708 | H18: 9.973500302 | I18: 6.751958116 | J18: 33.01541315 | K18: 26 | L18: 0.01414213562 | M18: Reject on ratio > 8
A19: 18HD07 | B19: 18HD09(62) | C19: HAH | E19: 3.737266472 | F19: 4.698092082 | G19: 1.25709315 | H19: 12.03337225 | I19: 0.8615474916 | J19: 19.01613586 | K19: 26 | L19: 0.01414213562 | M19: Reject on ratio > 8
A20: 18HD07 | B20: 18HD03(57) | C20: MW132S | E20: 2.270639399 | F20: 3.203496865 | G20: 1.410834704 | H20: 5.318412693 | I20: 1.031539104 | J20: 10.58605881 | K20: 231 | L20: 0.01414213562 | M20: Reject on ratio > 8
A21: 18HD07 | B21: MW125S | C21: MW133S | E21: 0.62696491 | F21: 1.598128387 | G21: 2.548991756 | H21: 1.658929658 | I21: 4.220282293 | J21: 10.7786615 | K21: 268 | L21: 0.01414213562 | M21: Reject on ratio > 8
A22: 18HD07 | B22: MW125S | C22: MW132S | E22: 0.7036321186 | F22: 1.688515141 | G22: 2.399712998 | H22: 2.630518883 | I22: 5.313125971 | J22: 15.14816516 | K22: 231 | L22: 0.01414213562 | M22: Reject on ratio > 8
A23: 18HD05(65) | B23: HR6 | C23: MW133S | E23: 0.4290410505 | F23: 1.414387555 | G23: 3.296625238 | H23: 1.393777956 | I23: 7.571743555 | J23: 15.14721359 | K23: 301 | L23: 0.01414213562 | M23: Reject on ratio > 8
A24: 18HD05(65) | B24: HR13 | C24: 18HD08(47) | E24: 2.606739463 | F24: 1.673182395 | G24: 0.6418679039 | H24: 9.111226856 | I24: 1.340854355 | J24: 3.753774497 | K24: 99 | L24: 0.01414213562 | M24: Reject on ratio > 8
A25: 18HD05(65) | B25: HR13 | C25: 18HD03(57) | E25: 0.7549124917 | F25: 1.74618931 | G25: 2.313101623 | H25: 3.772354527 | I25: 6.619409936 | J25: 20.18375324 | K25: 210 | L25: 0.01414213562 | M25: Reject on ratio > 8
A26: 18HD05(65) | B26: HR13 | C26: MW133S | E26: 0.3703544393 | F26: 1.350882957 | G26: 3.647540879 | H26: 0.9971321334 | I26: 7.269718638 | J26: 13.26639877 | K26: 301 | L26: 0.01414213562 | M26: Reject on ratio > 8
A27: 18HD05(65) | B27: HR13 | C27: MW132S | E27: 0.4432614181 | F27: 1.441781244 | G27: 3.252665776 | H27: 4.521484697 | I27: 23.01236226 | J27: 47.83656046 | K27: 264 | L27: 0.01414213562 | M27: Reject on ratio > 8
A28: 18HD05(65) | B28: 18HD06 | C28: MW133S | E28: 0.2898880052 | F28: 1.259231718 | G28: 4.343855888 | H28: 0.5781510416 | I28: 6.879879328 | J28: 10.90918055 | K28: 301 | L28: 0.01414213562 | M28: Reject on ratio > 8
A29: 18HD05(65) | B29: 18HD08(47) | C29: 18HD03(57) | E29: 0.383737366 | F29: 1.382875696 | G29: 3.603703518 | H29: 4.872410972 | I29: 33.08839732 | J29: 63.27643747 | K29: 210 | L29: 0.01414213562 | M29: Reject on ratio > 8
A30: 18HD05(65) | B30: 18HD08(47) | C30: MW133S | E30: 0.2082387163 | F30: 1.18335755 | G30: 5.682697103 | H30: 0.4042571991 | I30: 9.32255184 | J30: 13.05469647 | K30: 301 | L30: 0.01414213562 | M30: Reject on ratio > 8
A31: 18HD05(65) | B31: 18HD08(47) | C31: MW132S | E31: 0.2454470187 | F31: 1.243802833 | G31: 5.067500269 | H31: 1.904733021 | I31: 31.61684922 | J31: 48.91270394 | K31: 264 | L31: 0.01414213562 | M31: Reject on ratio > 8
A32: 18HD05(65) | B32: 18HD09(62) | C32: HAH | E32: 2.771372899 | F32: 3.734424374 | G32: 1.347499781 | H32: 8.87252036 | I32: 1.155199715 | J32: 16.11032905 | K32: 59 | L32: 0.01414213562 | M32: Reject on ratio > 8
A33: 18HD05(65) | B33: 18HD03(57) | C33: MW132S | E33: 2.439224498 | F33: 3.430018795 | G33: 1.406192336 | H33: 15.19870845 | I33: 2.554483714 | J33: 30.0535748 | K33: 264 | L33: 0.01414213562 | M33: Reject on ratio > 8
A34: 18HD05(65) | B34: MW125S | C34: MW133S | E34: 0.806544665 | F34: 1.806489589 | G34: 2.239788653 | H34: 51.3496092 | I34: 78.93694184 | J34: 257.6031818 | K34: 301 | L34: 0.01414213562 | M34: Reject on ratio > 8
A35: MW108S | B35: HR6 | C35: 18HD08(47) | E35: 2.421301073 | F35: 1.422489269 | G35: 0.5874896289 | H35: 64.8270302 | I35: 11.05754047 | J35: 22.37466467 | K35: 133 | L35: 0.01414213562 | M35: Reject on ratio > 8
A36: MW108S | B36: HR6 | C36: 18HD09(62) | E36: 1.686507103 | F36: 0.7106617947 | G36: 0.421380849 | H36: 11.95215173 | I36: 4.202132562 | J36: 2.122245813 | K36: 133 | L36: 0.01414213562 | M36: Reject on ratio > 8
A37: MW108S | B37: HR13 | C37: 18HD09(62) | E37: 2.283241399 | F37: 1.283261747 | G37: 0.5620350735 | H37: 477.4077994 | I37: 91.57688129 | J37: 150.8052103 | K37: 123 | L37: 0.01414213562 | M37: Reject on ratio > 8
A38: MW108S | B38: HR13 | C38: MW125S | E38: 1.832586253 | F38: 2.808762497 | G38: 1.532676834 | H38: 6.829961867 | I38: 2.033711902 | J38: 16.04425167 | K38: 183 | L38: 0.01414213562 | M38: Reject on ratio > 8
A39: MW108S | B39: HR13 | C39: MW133S | E39: 0.4860680009 | F39: 1.438365222 | G39: 2.959185173 | H39: 0.9417174589 | I39: 3.985901475 | J39: 8.246409682 | K39: 325 | L39: 0.01414213562 | M39: Reject on ratio > 8
A40: MW108S | B40: 18HD06 | C40: 18HD08(47) | E40: 2.549791781 | F40: 1.59888093 | G40: 0.6270633318 | H40: 10.43557935 | I40: 1.605118613 | J40: 4.10335769 | K40: 101 | L40: 0.01414213562 | M40: Reject on ratio > 8
A41: MW108S | B41: 18HD09(62) | C41: MW125S | E41: 0.5768110265 | F41: 1.572971047 | G41: 2.727012791 | H41: 3.993806004 | I41: 12.00383059 | J41: 29.70033278 | K41: 183 | L41: 0.01414213562 | M41: Reject on ratio > 8
A42: MW108S | B42: 18HD09(62) | C42: MW133S | E42: 0.2301520281 | F42: 1.211779302 | G42: 5.265125457 | H42: 0.5344630769 | I42: 10.08992864 | J42: 14.81614281 | K42: 325 | L42: 0.01414213562 | M42: Reject on ratio > 8
A43: MW108S | B43: HAH | C43: 18HD03(57) | E43: 0.466897251 | F43: 1.457935061 | G43: 3.122603653 | H43: 1.984466756 | I43: 9.103349029 | J43: 19.34984786 | K43: 234 | L43: 0.01414213562 | M43: Reject on ratio > 8
A44: MW108S | B44: HAH | C44: MW125S | E44: 0.5301049669 | F44: 1.492321582 | G44: 2.815143558 | H44: 1.174183308 | I44: 4.178420612 | J44: 9.305441754 | K44: 183 | L44: 0.01414213562 | M44: Reject on ratio > 8
A45: MW108S | B45: HAH | C45: MW133S | E45: 0.2254244774 | F45: 1.225245643 | G45: 5.435282174 | H45: 5.113753818 | I45: 100.6323637 | J45: 151.0720101 | K45: 325 | L45: 0.01414213562 | M45: Reject on ratio > 8
A46: MW108S | B46: HAH | C46: MW132S | E46: 0.2901802759 | F46: 1.278156709 | G46: 4.404698788 | H46: 0.9016013246 | I46: 10.70727021 | J46: 17.49230217 | K46: 288 | L46: 0.01414213562 | M46: Reject on ratio > 8
A47: MW108S | B47: 18HD03(57) | C47: MW133S | E47: 1.273507458 | F47: 2.216698996 | G47: 1.740625061 | H47: 2.919562859 | I47: 1.800175493 | J47: 8.845620323 | K47: 325 | L47: 0.01414213562 | M47: Reject on ratio > 8
A48: MW108S | B48: 18HD03(57) | C48: MW132S | E48: 2.352899874 | F48: 3.318965958 | G48: 1.410585293 | H48: 7.678068979 | I48: 1.386899899 | J48: 15.27744442 | K48: 288 | L48: 0.01414213562 | M48: Reject on ratio > 8
A49: HR6 | B49: HR13 | C49: HAS | E49: 0.2953514182 | F49: 1.295144402 | G49: 4.38509627 | H49: 6.932883332 | I49: 79.47595783 | J49: 133.312894 | K49: 177 | L49: 0.01414213562 | M49: Reject on ratio > 8
A50: HR6 | B50: HR13 | C50: HAH | E50: 0.7426455576 | F50: 1.723954515 | G50: 2.321369188 | H50: 2.542099725 | I50: 4.609240919 | J50: 13.69875237 | K50: 50 | L50: 0.01414213562 | M50: Reject on ratio > 8
A51: HR6 | B51: HAS | C51: 18HD06 | E51: 0.9771074015 | F51: 0.1362105409 | G51: 0.1394018106 | H51: 7.209891654 | I51: 7.55168963 | J51: 0.1401088497 | K51: 177 | L51: 0.01414213562 | M51: Reject on ratio < .2
A52: HR6 | B52: HAS | C52: HAH | E52: 2.027498619 | F52: 1.073311174 | G52: 0.5293770183 | H52: 9.361546256 | I52: 2.277332548 | J52: 2.62347998 | K52: 177 | L52: 0.01414213562 | M52: Reject on ratio > 8
A53: HR6 | B53: 18HD06 | C53: 18HD03(57) | E53: 0.1765473047 | F53: 0.8432692325 | G53: 4.776449202 | H53: 0.4180684448 | I53: 13.4129778 | J53: 9.538008729 | K53: 133 | L53: 0.01414213562 | M53: Reject on ratio > 8
A54: HR6 | B54: 18HD06 | C54: MW125S | E54: 0.3492357663 | F54: 0.6530481401 | G54: 1.869934878 | H54: 3.78612329 | I54: 31.04254524 | J54: 13.23877242 | K54: 82 | L54: 0.01414213562 | M54: Reject on ratio > 8
A55: HR6 | B55: 18HD06 | C55: MW133S | E55: 0.1116756199 | F55: 0.8903017519 | G55: 7.972212312 | H55: 0.6317823418 | I55: 50.65831494 | J55: 40.15366539 | K55: 224 | L55: 0.01414213562 | M55: Reject on ratio > 8
A56: HR6 | B56: 18HD06 | C56: MW132S | E56: 0.1196374703 | F56: 0.8851974112 | G56: 7.398998063 | H56: 0.4519340594 | I56: 31.57480154 | J56: 24.74120797 | K56: 187 | L56: 0.01414213562 | M56: Reject on ratio > 8
A57: HR6 | B57: 18HD08(47) | C57: 18HD09(62) | E57: 2.059902547 | F57: 2.95738111 | G57: 1.435689816 | H57: 3.913461554 | I57: 0.9222904725 | J57: 8.066447496 | K57: 62 | L57: 0.01414213562 | M57: Reject on ratio > 8
A58: HR6 | B58: MW125S | C58: MW133S | E58: 0.2995812734 | F58: 1.277223899 | G58: 4.26336361 | H58: 0.7001960427 | I58: 7.801719413 | J58: 12.72695181 | K58: 192 | L58: 0.01414213562 | M58: Reject on ratio > 8
A59: HR6 | B59: MW125S | C59: MW132S | E59: 0.3362149983 | F59: 1.33034265 | G59: 3.956821251 | H59: 1.567066523 | I59: 13.86287371 | J59: 24.53467424 | K59: 155 | L59: 0.01414213562 | M59: Reject on ratio > 8
A60: HR13 | B60: HAS | C60: 18HD06 | E60: 0.7544389643 | F60: 0.2688955169 | G60: 0.3564178544 | H60: 5.992779094 | I60: 10.52882843 | J60: 0.7612848234 | K60: 167 | L60: 0.01414213562 | M60: Reject on ratio > 8
A61: HR13 | B61: 18HD08(47) | C61: 18HD03(57) | E61: 0.2293458066 | F61: 0.7919391603 | G61: 3.453035274 | H61: 0.6134732999 | I61: 11.66310158 | J61: 7.314719815 | K61: 161 | L61: 0.01414213562 | M61: Reject on ratio > 8
A62: HR13 | B62: 18HD08(47) | C62: MW125S | E62: 0.3540375848 | F62: 0.6609400185 | G62: 1.866863991 | H62: 1.516190221 | I62: 12.09636694 | J62: 5.284197594 | K62: 110 | L62: 0.01414213562 | M62: Reject on ratio > 8
A63: HR13 | B63: 18HD08(47) | C63: MW133S | E63: 0.1244566742 | F63: 0.8759882148 | G63: 7.038499303 | H63: 1.574101082 | I63: 101.6239882 | J63: 77.98171127 | K63: 252 | L63: 0.01414213562 | M63: Reject on ratio > 8
A64: HR13 | B64: 18HD08(47) | C64: MW132S | E64: 0.1466947175 | F64: 0.8626848477 | G64: 5.880817405 | H64: 0.449068398 | I64: 20.86813049 | J64: 15.53058747 | K64: 215 | L64: 0.01414213562 | M64: Reject on ratio > 8
A65: HR13 | B65: 18HD09(62) | C65: MW125S | E65: 0.4494882106 | F65: 0.5600228033 | G65: 1.245912107 | H65: 2.940880835 | I65: 14.55595877 | J65: 4.565120431 | K65: 112 | L65: 0.01414213562 | M65: Reject on ratio > 8
A66: HR13 | B66: 18HD09(62) | C66: MW133S | E66: 0.179349247 | F66: 0.842469829 | G66: 4.697370315 | H66: 0.4092047626 | I66: 12.72159496 | J66: 9.029220886 | K66: 254 | L66: 0.01414213562 | M66: Reject on ratio > 8
A67: HR13 | B67: 18HD03(57) | C67: MW132S | E67: 1.396884337 | F67: 2.379014714 | G67: 1.703086397 | H67: 5.695051773 | I67: 2.918614803 | J67: 16.51851633 | K67: 165 | L67: 0.01414213562 | M67: Reject on ratio > 8
A68: HR13 | B68: MW125S | C68: MW133S | E68: 0.3546911459 | F68: 1.337265808 | G68: 3.770226078 | H68: 0.9918630573 | I68: 7.884079958 | J68: 14.09894125 | K68: 202 | L68: 0.01414213562 | M68: Reject on ratio > 8
A69: HAS | B69: 18HD06 | C69: 18HD08(47) | E69: 3.692240526 | F69: 2.73349223 | G69: 0.7403342796 | H69: 15.11126588 | I69: 1.108462174 | J69: 8.28240694 | K69: 145 | L69: 0.01414213562 | M69: Reject on ratio > 8
A70: HAS | B70: 18HD06 | C70: 18HD09(62) | E70: 2.391015676 | F70: 1.430012952 | G70: 0.5980776145 | H70: 11.21153317 | I70: 1.961101895 | J70: 4.010329909 | K70: 145 | L70: 0.01414213562 | M70: Reject on ratio > 8
A71: HAS | B71: 18HD06 | C71: HAH | E71: 1.918588367 | F71: 0.9246205528 | G71: 0.4819275299 | H71: 25.22103586 | I71: 6.851715247 | J71: 5.857690097 | K71: 145 | L71: 0.01414213562 | M71: Reject on ratio > 8
A72: HAS | B72: 18HD08(47) | C72: 18HD09(62) | E72: 5.009534761 | F72: 4.046942959 | G72: 0.8078480641 | H72: 20.5793119 | I72: 0.8200419324 | J72: 13.43043955 | K72: 117 | L72: 0.01414213562 | M72: Reject on ratio > 8
A73: HAS | B73: 18HD08(47) | C73: HAH | E73: 2.86460577 | F73: 1.864741943 | G73: 0.6509593615 | H73: 215.1517932 | I73: 26.21894699 | J73: 91.1701615 | K73: 127 | L73: 0.01414213562 | M73: Reject on ratio > 8
A74: HAS | B74: 18HD09(62) | C74: HAH | E74: 4.916687175 | F74: 3.961838477 | G74: 0.8057942952 | H74: 18.44653894 | I74: 0.7630794161 | J74: 11.97741975 | K74: 127 | L74: 0.01414213562 | M74: Reject on ratio > 8
A75: HAS | B75: 18HD03(57) | C75: MW133S | E75: 1.079396889 | F75: 2.075468194 | G75: 1.922803572 | H75: 8.794104298 | I75: 7.547954752 | J75: 32.51333004 | K75: 369 | L75: 0.01414213562 | M75: Reject on ratio > 8
A76: 18HD06 | B76: 18HD08(47) | C76: 18HD09(62) | E76: 1.832650083 | F76: 2.83000441 | G76: 1.54421427 | H76: 20.29015892 | I76: 6.041243587 | J76: 48.38386654 | K76: 30 | L76: 0.01414213562 | M76: Reject on ratio > 8
A77: 18HD06 | B77: 18HD08(47) | C77: HAH | E77: 1.04796558 | F77: 2.016764539 | G77: 1.92445685 | H77: 3.059083278 | I77: 2.785462159 | J77: 11.32941944 | K77: 28 | L77: 0.01414213562 | M77: Reject on ratio > 8
A78: 18HD06 | B78: 18HD09(62) | C78: HAH | E78: 3.43821164 | F78: 4.284826316 | G78: 1.246236929 | H78: 5.800941696 | I78: 0.4907194683 | J78: 9.009480161 | K78: 30 | L78: 0.01414213562 | M78: Reject on ratio > 8
A79: 18HD06 | B79: 18HD03(57) | C79: MW132S | E79: 1.932185654 | F79: 2.851298748 | G79: 1.475685705 | H79: 4.051329326 | I79: 1.085175153 | J79: 8.822370414 | K79: 187 | L79: 0.01414213562 | M79: Reject on ratio > 8
A80: 18HD06 | B80: MW125S | C80: MW133S | E80: 0.4587430161 | F80: 1.434596637 | G80: 3.127233738 | H80: 1.198553771 | I80: 5.695326045 | J80: 11.7213655 | K80: 224 | L80: 0.01414213562 | M80: Reject on ratio > 8
A81: 18HD06 | B81: MW125S | C81: MW132S | E81: 0.5148395312 | F81: 1.502876797 | G81: 2.91911694 | H81: 1.961524343 | I81: 7.40031029 | J81: 16.71462697 | K81: 187 | L81: 0.01414213562 | M81: Reject on ratio > 8
A82: 18HD08(47) | B82: 18HD09(62) | C82: MW133S | E82: 0.1095076712 | F82: 0.9617364878 | G82: 8.782366358 | H82: 0.1193401579 | I82: 9.951705629 | J82: 9.204701465 | K82: 254 | L82: 0.01414213562 | M82: Reject on ratio > 8
A83: 18HD08(47) | B83: 18HD09(62) | C83: MW132S | E83: 0.1349456125 | F83: 1.005481386 | G83: 7.451012058 | H83: 0.1349938915 | I83: 7.41304402 | J83: 7.494534264 | K83: 217 | L83: 0.01414213562 | M83: Reject on ratio < .2
A84: 18HD08(47) | B84: HAH | C84: MW133S | E84: 0.1936318132 | F84: 0.9724241365 | G84: 5.022026703 | H84: 0.1993235641 | I84: 5.316247844 | J84: 5.027090219 | K84: 252 | L84: 0.01414213562 | M84: Reject on ratio < .2
A85: 18HD08(47) | B85: 18HD03(57) | C85: MW132S | E85: 1.763878348 | F85: 2.757686912 | G85: 1.563422396 | H85: 12.70079408 | I85: 4.08219378 | J85: 31.04441873 | K85: 215 | L85: 0.01414213562 | M85: Reject on ratio > 8
A86: 18HD08(47) | B86: MW125S | C86: MW133S | E86: 0.5366464974 | F86: 1.526579679 | G86: 2.844665318 | H86: 2.25496015 | I86: 7.830009214 | J86: 18.24740987 | K86: 252 | L86: 0.01414213562 | M86: Reject on ratio > 8
A87: 18HD09(62) | B87: HAH | C87: MW133S | E87: 0.09113783049 | F87: 1.011112866 | G87: 11.0943267 | H87: 0.09140952284 | I87: 11.00510194 | J87: 11.25105747 | K87: 254 | L87: 0.01414213562 | M87: Reject on ratio > 8
A88: 18HD09(62) | B88: HAH | C88: MW132S | E88: 0.1173182305 | F88: 1.056214752 | G88: 9.002989115 | H88: 0.1302196691 | I88: 9.461185984 | J88: 10.55480071 | K88: 217 | L88: 0.01414213562 | M88: Reject on ratio > 8
A89: 18HD09(62) | B89: 18HD03(57) | C89: MW132S | E89: 1.744290049 | F89: 2.74265337 | G89: 1.572360842 | H89: 24.32543829 | I89: 7.995088353 | J89: 60.14023393 | K89: 217 | L89: 0.01414213562 | M89: Reject on ratio > 8
A90: 18HD09(62) | B90: MW125S | C90: MW133S | E90: 0.6333512561 | F90: 1.587315963 | G90: 2.506217439 | H90: 1.349099205 | I90: 3.363214866 | J90: 8.473861893 | K90: 254 | L90: 0.01414213562 | M90: Reject on ratio > 8
A91: HAH | B91: 18HD03(57) | C91: MW132S | E91: 1.613857802 | F91: 2.59668156 | G91: 1.608990306 | H91: 6.901191082 | I91: 2.649680563 | J91: 17.86614719 | K91: 205 | L91: 0.01414213562 | M91: Reject on ratio > 8

Sheet EstimatorGraphs
B1: well | C1: well | D1: well | E1: well | L1: max grad | M1: 0.004484014262 | N1: Vector Mag. factor | O1: =Input!E5/Input!E7 -> 8333.333333 | P1: K (L/T) | Q1: =Input!E5 -> 2500 | R1: n | S1: =Input!E7 -> 0.3 | AF1: Replotting Estimators | AG1: Well 1 | AH1: Well 2 | AI1: Well 3 | AK1: Row Source
B2: A | C2: B | D2: C | E2: A | F2: gradient | G2: angle | H2: centroid | I2: x'_ y' | J2: Vel (L/T) | N2: days | O2: =Input!N25 -> 5
B3: 18HD07 | C3: 18HD05(65) | D3: MW108S | E3: 18HD07 | F3: 0.0008734258007 | G3: 176.5735656 | AG3: 18HD07 | AH3: 18HD05(65) | AI3: MW133S | AK3: =IF(ISBLANK(Input!A5), "",Input!A5) -> 18HD07
B4: 601.294 | C4: 235.605 | D4: 0 | E4: 601.294 | H4: 278.9663333 | I4: =H4+(COS(G3*PI()/180)*$O$1)*ABS(F3)*$O$2 -> 242.6386488 | J4: =(-1)*$Q$1*F3/$S$1 -> -7.278548339 | AG4: 18HD07 | AH4: MW108S | AI4: MW133S | AK4: =IF(ISBLANK(Input!A6), "",Input!A6) -> 18HD05(65)
B5: 0 | C5: 213.953 | D5: 876.464 | E5: 0 | H5: 363.4723333 | I5: =H5+(SIN((G3)*PI()/180)*$O$1)*ABS(F3)*$O$2 -> 365.6474155 | AG5: 18HD07 | AH5: HR13 | AI5: HAH | AK5: =IF(ISBLANK(Input!A7), "",Input!A7) -> MW108S
B6: 18HD07 | C6: 18HD05(65) | D6: HR6 | E6: 18HD07 | F6: 0.001740120593 | G6: 213.0791833 | AG6: 18HD07 | AH6: 18HD08(47) | AI6: MW125S | AK6: =IF(ISBLANK(Input!A8), "",Input!A8) -> HR6
B7: 601.294 | C7: 235.605 | D7: 964.229 | E7: 601.294 | H7: 600.376 | I7: =H7+(COS(G6*PI()/180)*$O$1)*ABS(F6)*$O$2 -> 539.6228021 | J7: =(-1)*$Q$1*F6/$S$1 -> -14.50100494 | AG7: 18HD07 | AH7: 18HD03(57) | AI7: MW125S | AK7: =IF(ISBLANK(Input!A9), "",Input!A9) -> HR13
B8: 0 | C8: 213.953 | D8: 243.024 | E8: 0 | H8: 152.3256667 | I8: =H8+(SIN((G6)*PI()/180)*$O$1)*ABS(F6)*$O$2 -> 112.7526007 | AG8: 18HD05(65) | AH8: MW108S | AI8: MW125S | AK8: =IF(ISBLANK(Input!A10), "",Input!A10) -> HAS
B9: 18HD07 | C9: 18HD05(65) | D9: HR13 | E9: 18HD07 | F9: 0.001503424641 | G9: 208.4660668 | AG9: 18HD05(65) | AH9: HR6 | AI9: MW132S | AK9: =IF(ISBLANK(Input!A11), "",Input!A11) -> 18HD06
B10: 601.294 | C10: 235.605 | D10: 801.62 | E10: 601.294 | H10: 546.173 | I10: =H10+(COS(G9*PI()/180)*$O$1)*ABS(F9)*$O$2 -> 491.1038362 | J10: =(-1)*$Q$1*F9/$S$1 -> -12.52853867 | AG10: 18HD05(65) | AH10: HAS | AI10: MW125S | AK10: =IF(ISBLANK(Input!A12), "",Input!A12) -> 18HD08(47)
B11: 0 | C11: 213.953 | D11: 551.553 | E11: 0 | H11: 255.1686667 | I11: =H11+(SIN((G9)*PI()/180)*$O$1)*ABS(F9)*$O$2 -> 225.310766 | Z11: =360-17 -> 343 | AG11: 18HD05(65) | AH11: 18HD08(47) | AI11: MW125S | AK11: =IF(ISBLANK(Input!A13), "",Input!A13) -> 18HD09(62)
B12: 18HD07 | C12: 18HD05(65) | D12: HAS | E12: 18HD07 | F12: 0.0007905474728 | G12: 139.8180226 | AG12: 18HD05(65) | AH12: MW125S | AI12: MW132S | AK12: =IF(ISBLANK(Input!A14), "",Input!A14) -> HAH
B13: 601.294 | C13: 235.605 | D13: 296.061 | E13: 601.294 | H13: 377.6533333 | I13: =H13+(COS(G12*PI()/180)*$O$1)*ABS(F12)*$O$2 -> 352.4876043 | J13: =(-1)*$Q$1*F12/$S$1 -> -6.587895607 | AG13: MW108S | AH13: HR13 | AI13: 18HD06 | AK13: =IF(ISBLANK(Input!A15), "",Input!A15) -> 18HD03(57)
B14: 0 | C14: 213.953 | D14: 1618.676 | E14: 0 | H14: 610.8763333 | I14: =H14+(SIN((G12)*PI()/180)*$O$1)*ABS(F12)*$O$2 -> 632.1294577 | AG14: MW108S | AH14: HAS | AI14: MW133S | AK14: =IF(ISBLANK(Input!A16), "",Input!A16) -> MW125S
B15: 18HD07 | C15: 18HD05(65) | D15: 18HD06 | E15: 18HD07 | F15: 0.001965361144 | G15: 216.3218073 | AG15: MW108S | AH15: 18HD08(47) | AI15: MW125S | AK15: =IF(ISBLANK(Input!A17), "",Input!A17) -> MW133S
B16: 601.294 | C16: 235.605 | D16: 782.774 | E16: 601.294 | H16: 539.891 | I16: =H16+(COS(G15*PI()/180)*$O$1)*ABS(F15)*$O$2 -> 473.9119513 | J16: =(-1)*$Q$1*F15/$S$1 -> -16.37800953 | AG16: HR6 | AH16: HR13 | AI16: 18HD08(47) | AK16: =IF(ISBLANK(Input!A18), "",Input!A18) -> MW132S
B17: 0 | C17: 213.953 | D17: 131.109 | E17: 0 | H17: 115.0206667 | I17: =H17+(SIN((G15)*PI()/180)*$O$1)*ABS(F15)*$O$2 -> 66.51556348 | AG17: HR6 | AH17: HAS | AI17: MW132S | AK17: =IF(ISBLANK(Input!A19), "",Input!A19) -> 
B18: 18HD07 | C18: 18HD05(65) | D18: 18HD08(47) | E18: 18HD07 | F18: 0.001233750574 | G18: 200.5219257 | AG18: HR6 | AH18: 18HD09(62) | AI18: MW125S | AK18: =IF(ISBLANK(Input!A20), "",Input!A20) -> 
B19: 601.294 | C19: 235.605 | D19: 556.508 | E19: 601.294 | H19: 464.469 | I19: =H19+(COS(G18*PI()/180)*$O$1)*ABS(F18)*$O$2 -> 416.3250656 | J19: =(-1)*$Q$1*F18/$S$1 -> -10.28125478 | AG19: HR13 | AH19: HAS | AI19: 18HD08(47) | AK19: =IF(ISBLANK(Input!A21), "",Input!A21) -> 
B20: 0 | C20: 213.953 | D20: 489.579 | E20: 0 | H20: 234.5106667 | I20: =H20+(SIN((G18)*PI()/180)*$O$1)*ABS(F18)*$O$2 -> 216.4893853 | AG20: HR13 | AH20: 18HD06 | AI20: MW125S | AK20: =IF(ISBLANK(Input!A22), "",Input!A22) -> 
B21: 18HD07 | C21: 18HD05(65) | D21: 18HD09(62) | E21: 18HD07 | F21: 0.00125244537 | G21: 201.2147408 | AG21: HR13 | AH21: HAH | AI21: MW132S | AK21: =IF(ISBLANK(Input!A23), "",Input!A23) -> 
B22: 601.294 | C22: 235.605 | D22: 451.216 | E22: 601.294 | H22: 429.3716667 | I22: =H22+(COS(G21*PI()/180)*$O$1)*ABS(F21)*$O$2 -> 380.7229972 | J22: =(-1)*$Q$1*F21/$S$1 -> -10.43704475 | AG22: HAS | AH22: 18HD08(47) | AI22: MW133S | AK22: =IF(ISBLANK(Input!A24), "",Input!A24) -> 
B23: 0 | C23: 213.953 | D23: 695.533 | E23: 0 | H23: 303.162 | I23: =H23+(SIN((G21)*PI()/180)*$O$1)*ABS(F21)*$O$2 -> 284.2780242 | AG23: HAS | AH23: 18HD03(57) | AI23: MW132S
B24: 18HD07 | C24: 18HD05(65) | D24: HAH | E24: 18HD07 | F24: 0.001265112413 | G24: 201.6689009 | AG24: 18HD06 | AH24: 18HD09(62) | AI24: MW132S
B25: 601.294 | C25: 235.605 | D25: 470.845 | E25: 601.294 | H25: 435.9146667 | I25: =H25+(COS(G24*PI()/180)*$O$1)*ABS(F24)*$O$2 -> 386.9267136 | J25: =(-1)*$Q$1*F24/$S$1 -> -10.54260344 | AG25: 18HD08(47) | AH25: HAH | AI25: 18HD03(57)
B26: 0 | C26: 213.953 | D26: 884.909 | E26: 0 | H26: 366.2873333 | I26: =H26+(SIN((G24)*PI()/180)*$O$1)*ABS(F24)*$O$2 -> 346.8234531 | AG26: 18HD09(62) | AH26: MW125S | AI26: MW132S
B27: 18HD07 | C27: 18HD05(65) | D27: 18HD03(57) | E27: 18HD07 | F27: 0.001405206561 | G27: 206.0076945
B28: 601.294 | C28: 235.605 | D28: 1446.736 | E28: 601.294 | H28: 761.2116667 | I28: =H28+(COS(G27*PI()/180)*$O$1)*ABS(F27)*$O$2 -> 708.5904769 | J28: =(-1)*$Q$1*F27/$S$1 -> -11.71005467
B29: 0 | C29: 213.953 | D29: 1139.754 | E29: 0 | H29: 451.2356667 | I29: =H29+(SIN((G27)*PI()/180)*$O$1)*ABS(F27)*$O$2 -> 425.5618492
B30: 18HD07 | C30: 18HD05(65) | D30: MW125S | E30: 18HD07 | F30: 0.00152406308 | G30: 208.9348649
B31: 601.294 | C31: 235.605 | D31: 1270.577 | E31: 601.294 | H31: 702.492 | I31: =H31+(COS(G30*PI()/180)*$O$1)*ABS(F30)*$O$2 -> 646.9163867 | J31: =(-1)*$Q$1*F30/$S$1 -> -12.70052567
B32: 0 | C32: 213.953 | D32: 498.126 | E32: 0 | H32: 237.3596667 | I32: =H32+(SIN((G30)*PI()/180)*$O$1)*ABS(F30)*$O$2 -> 206.6361412
B33: 18HD07 | C33: 18HD05(65) | D33: MW133S | E33: 18HD07 | F33: 0.00126061729 | G33: 201.5091021
B34: 601.294 | C34: 235.605 | D34: 2559.17 | E34: 601.294 | H34: 1132.023 | I34: =H34+(COS(G33*PI()/180)*$O$1)*ABS(F33)*$O$2 -> 1083.155206 | J34: =(-1)*$Q$1*F33/$S$1 -> -10.50514409
B35: 0 | C35: 213.953 | D35: 830.261 | E35: 0 | H35: 348.0713333 | I35: =H35+(SIN((G33)*PI()/180)*$O$1)*ABS(F33)*$O$2 -> 328.8128289
B36: 18HD07 | C36: 18HD05(65) | D36: MW132S | E36: 18HD07 | F36: 0.001264299391 | G36: 201.6401084
B37: 601.294 | C37: 235.605 | D37: 1997.736 | E37: 601.294 | H37: 944.8783333 | I37: =H37+(COS(G36*PI()/180)*$O$1)*ABS(F36)*$O$2 -> 895.9120937 | J37: =(-1)*$Q$1*F36/$S$1 -> -10.53582826
B38: 0 | C38: 213.953 | D38: 1434.695 | E38: 0 | H38: 549.5493333 | I38: =H38+(SIN((G36)*PI()/180)*$O$1)*ABS(F36)*$O$2 -> 530.1225657
B39: 18HD07 | C39: MW108S | D39: HR6 | E39: 18HD07 | F39: 0.001815080784 | G39: 197.2671616
B40: 601.294 | C40: 0 | D40: 964.229 | E40: 601.294 | H40: 521.841 | I40: =H40+(COS(G39*PI()/180)*$O$1)*ABS(F39)*$O$2 -> 449.6211228 | J40: =(-1)*$Q$1*F39/$S$1 -> -15.1256732
B41: 0 | C41: 876.464 | D41: 243.024 | E41: 0 | H41: 373.1626667 | I41: =H41+(SIN((G39)*PI()/180)*$O$1)*ABS(F39)*$O$2 -> 350.7140791
B42: 18HD07 | C42: MW108S | D42: HR13 | E42: 18HD07 | F42: 0.001846379732 | G42: 197.5672885
B43: 601.294 | C43: 0 | D43: 801.62 | E43: 601.294 | H43: 467.638 | I43: =H43+(COS(G42*PI()/180)*$O$1)*ABS(F42)*$O$2 -> 394.2934007 | J43: =(-1)*$Q$1*F42/$S$1 -> -15.38649777
B44: 0 | C44: 876.464 | D44: 551.553 | E44: 0 | H44: 476.0056667 | I44: =H44+(SIN((G42)*PI()/180)*$O$1)*ABS(F42)*$O$2 -> 452.7854688
B45: 18HD07 | C45: MW108S | D45: HAS | E45: 18HD07 | F45: 0.0006162543431 | G45: 94.9351359
B46: 601.294 | C46: 0 | D46: 296.061 | E46: 601.294 | H46: 299.1183333 | I46: =H46+(COS(G45*PI()/180)*$O$1)*ABS(F45)*$O$2 -> 296.9093721 | J46: =(-1)*$Q$1*F45/$S$1 -> -5.135452859
B47: 0 | C47: 876.464 | D47: 1618.676 | E47: 0 | H47: 831.7133333 | I47: =H47+(SIN((G45)*PI()/180)*$O$1)*ABS(F45)*$O$2 -> 857.295405
B48: 18HD07 | C48: MW108S | D48: 18HD06 | E48: 18HD07 | F48: 0.002050301397 | G48: 199.2893875
B49: 601.294 | C49: 0 | D49: 782.774 | E49: 601.294 | H49: 461.356 | I49: =H49+(COS(G48*PI()/180)*$O$1)*ABS(F48)*$O$2 -> 380.7225878 | J49: =(-1)*$Q$1*F48/$S$1 -> -17.08584497
B50: 0 | C50: 876.464 | D50: 131.109 | E50: 0 | H50: 335.8576667 | I50: =H50+(SIN((G48)*PI()/180)*$O$1)*ABS(F48)*$O$2 -> 307.637013
B51: 18HD07 | C51: MW108S | D51: 18HD08(47) | E51: 18HD07 | F51: 0.00171133444 | G51: 196.189769
B52: 601.294 | C52: 0 | D52: 556.508 | E52: 601.294 | H52: 385.934 | I52: =H52+(COS(G51*PI()/180)*$O$1)*ABS(F51)*$O$2 -> 317.4561298 | J52: =(-1)*$Q$1*F51/$S$1 -> -14.26112033
B53: 0 | C53: 876.464 | D53: 489.579 | E53: 0 | H53: 455.3476667 | I53: =H53+(SIN((G51)*PI()/180)*$O$1)*ABS(F51)*$O$2 -> 435.4662654
B54: 18HD07 | C54: MW108S | D54: 18HD09(62) | E54: 18HD07 | F54: 0.00190524206 | G54: 198.1038266
B55: 601.294 | C55: 0 | D55: 451.216 | E55: 601.294 | H55: 350.8366667 | I55: =H55+(COS(G54*PI()/180)*$O$1)*ABS(F54)*$O$2 -> 275.3815411 | J55: =(-1)*$Q$1*F54/$S$1 -> -15.87701717
B56: 0 | C56: 876.464 | D56: 695.533 | E56: 0 | H56: 523.999 | I56: =H56+(SIN((G54)*PI()/180)*$O$1)*ABS(F54)*$O$2 -> 499.3308855
B57: 18HD07 | C57: MW108S | D57: HAH | E57: 18HD07 | F57: 0.001837809851 | G57: 197.4861753
B58: 601.294 | C58: 0 | D58: 470.845 | E58: 601.294 | H58: 357.3796667 | I58: =H58+(COS(G57*PI()/180)*$O$1)*ABS(F57)*$O$2 -> 284.3428458 | J58: =(-1)*$Q$1*F57/$S$1 -> -15.31508209
B59: 0 | C59: 876.464 | D59: 884.909 | E59: 0 | H59: 587.1243333 | I59: =H59+(SIN((G57)*PI()/180)*$O$1)*ABS(F57)*$O$2 -> 564.1152854
B60: 18HD07 | C60: MW108S | D60: 18HD03(57) | E60: 18HD07 | F60: 0.001596231832 | G60: 194.8208971
B61: 601.294 | C61: 0 | D61: 1446.736 | E61: 601.294 | H61: 682.6766667 | I61: =H61+(COS(G60*PI()/180)*$O$1)*ABS(F60)*$O$2 -> 618.3797729 | J61: =(-1)*$Q$1*F60/$S$1 -> -13.30193193
B62: 0 | C62: 876.464 | D62: 1139.754 | E62: 0 | H62: 672.0726667 | I62: =H62+(SIN((G60)*PI()/180)*$O$1)*ABS(F60)*$O$2 -> 655.0596046
B63: 18HD07 | C63: MW108S | D63: MW125S | E63: 18HD07 | F63: 0.001623172232 | G63: 195.1597428
B64: 601.294 | C64: 0 | D64: 1270.577 | E64: 601.294 | H64: 623.957 | I64: =H64+(COS(G63*PI()/180)*$O$1)*ABS(F63)*$O$2 -> 558.6783912 | J64: =(-1)*$Q$1*F63/$S$1 -> -13.52643526
B65: 0 | C65: 876.464 | D65: 498.126 | E65: 0 | H65: 458.1966667 | I65: =H65+(SIN((G63)*PI()/180)*$O$1)*ABS(F63)*$O$2 -> 440.5101036
B66: 18HD07 | C66: MW108S | D66: MW133S | E66: 18HD07 | F66: 0.001293466376 | G66: 189.9577299
B67: 601.294 | C67: 0 | D67: 2559.17 | E67: 601.294 | H67: 1053.488 | I67: =H67+(COS(G66*PI()/180)*$O$1)*ABS(F66)*$O$2 -> 1000.405455 | J67: =(-1)*$Q$1*F66/$S$1 -> -10.77888647
B68: 0 | C68: 876.464 | D68: 830.261 | E68: 0 | H68: 568.9083333 | I68: =H68+(SIN((G66)*PI()/180)*$O$1)*ABS(F66)*$O$2 -> 559.5888226
B69: 18HD07 | C69: MW108S | D69: MW132S | E69: 18HD07 | F69: 0.001391547884 | G69: 191.7846872
B70: 601.294 | C70: 0 | D70: 1997.736 | E70: 601.294 | H70: 866.3433333 | I70: =H70+(COS(G69*PI()/180)*$O$1)*ABS(F69)*$O$2 -> 809.584298 | J70: =(-1)*$Q$1*F69/$S$1 -> -11.59623237
B71: 0 | C71: 876.464 | D71: 1434.695 | E71: 0 | H71: 770.3863333 | I71: =H71+(SIN((G69)*PI()/180)*$O$1)*ABS(F69)*$O$2 -> 758.5445836
B72: 18HD07 | C72: HR6 | D72: HR13 | E72: 18HD07 | F72: 0.001802776203 | G72: 198.6395188
B73: 601.294 | C73: 964.229 | D73: 801.62 | E73: 601.294 | H73: 789.0476667 | I73: =H73+(COS(G72*PI()/180)*$O$1)*ABS(F72)*$O$2 -> 717.8719448 | J73: =(-1)*$Q$1*F72/$S$1 -> -15.02313503
B74: 0 | C74: 243.024 | D74: 551.553 | E74: 0 | H74: 264.859 | I74: =H74+(SIN((G72)*PI()/180)*$O$1)*ABS(F72)*$O$2 -> 240.8510582
B75: 18HD07 | C75: HR6 | D75: HAS | E75: 18HD07 | F75: 0.002239501031 | G75: 174.7887256
B76: 601.294 | C76: 964.229 | D76: 296.061 | E76: 601.294 | H76: 620.528 | I76: =H76+(COS(G75*PI()/180)*$O$1)*ABS(F75)*$O$2 -> 527.6011602 | J76: =(-1)*$Q$1*F75/$S$1 -> -18.66250859
B77: 0 | C77: 243.024 | D77: 1618.676 | E77: 0 | H77: 620.5666667 | I77: =H77+(SIN((G75)*PI()/180)*$O$1)*ABS(F75)*$O$2 -> 629.0421091
B78: 18HD07 | C78: HR6 | D78: 18HD08(47) | E78: 18HD07 | F78: 0.00183323799 | G78: 195.4526409
B79: 601.294 | C79: 964.229 | D79: 556.508 | E79: 601.294 | H79: 707.3436667 | I79: =H79+(COS(G78*PI()/180)*$O$1)*ABS(F78)*$O$2 -> 633.7199876 | J79: =(-1)*$Q$1*F78/$S$1 -> -15.27698325
B80: 0 | C80: 243.024 | D80: 489.579 | E80: 0 | H80: 244.201 | I80: =H80+(SIN((G78)*PI()/180)*$O$1)*ABS(F78)*$O$2 -> 223.8488673
B81: 18HD07 | C81: HR6 | D81: 18HD09(62) | E81: 18HD07 | F81: 0.00180452556 | G81: 198.4359504
B82: 601.294 | C82: 964.229 | D82: 451.216 | E82: 601.294 | H82: 672.2463333 | I82: =H82+(COS(G81*PI()/180)*$O$1)*ABS(F81)*$O$2 -> 600.9166132 | J82: =(-1)*$Q$1*F81/$S$1 -> -15.037713
B83: 0 | C83: 243.024 | D83: 695.533 | E83: 0 | H83: 312.8523333 | I83: =H83+(SIN((G81)*PI()/180)*$O$1)*ABS(F81)*$O$2 -> 289.0743745
B84: 18HD07 | C84: HR6 | D84: HAH | E84: 18HD07 | F84: 0.001811821657 | G84: 197.6178404
B85: 601.294 | C85: 964.229 | D85: 470.845 | E85: 601.294 | H85: 678.7893333 | I85: =H85+(COS(G84*PI()/180)*$O$1)*ABS(F84)*$O$2 -> 606.8376321 | J85: =(-1)*$Q$1*F84/$S$1 -> -15.09851381
B86: 0 | C86: 243.024 | D86: 884.909 | E86: 0 | H86: 375.9776667 | I86: =H86+(SIN((G84)*PI()/180)*$O$1)*ABS(F84)*$O$2 -> 353.1285818
B87: 18HD07 | C87: HR13 | D87: HAS | E87: 18HD07 | F87: 0.003299523381 | G87: 179.969139
B88: 601.294 | C88: 801.62 | D88: 296.061 | E88: 601.294 | H88: 566.325 | I88: =H88+(COS(G87*PI()/180)*$O$1)*ABS(F87)*$O$2 -> 428.844879 | J88: =(-1)*$Q$1*F87/$S$1 -> -27.49602818
B89: 0 | C89: 551.553 | D89: 1618.676 | E89: 0 | H89: 723.4096667 | I89: =H89+(SIN((G87)*PI()/180)*$O$1)*ABS(F87)*$O$2 -> 723.483717
B90: 18HD07 | C90: HR13 | D90: 18HD06 | E90: 18HD07 | F90: 0.002157937555 | G90: 191.4520745
B91: 601.294 | C91: 801.62 | D91: 782.774 | E91: 601.294 | H91: 728.5626667 | I91: =H91+(COS(G90*PI()/180)*$O$1)*ABS(F90)*$O$2 -> 640.4386898 | J91: =(-1)*$Q$1*F90/$S$1 -> -17.98281296
B92: 0 | C92: 551.553 | D92: 131.109 | E92: 0 | H92: 227.554 | I92: =H92+(SIN((G90)*PI()/180)*$O$1)*ABS(F90)*$O$2 -> 209.7017243
B93: 18HD07 | C93: HR13 | D93: 18HD08(47) | E93: 18HD07 | F93: 0.001977727691 | G93: 194.6983952
B94: 601.294 | C94: 801.62 | D94: 556.508 | E94: 601.294 | H94: 653.1406667 | I94: =H94+(COS(G93*PI()/180)*$O$1)*ABS(F93)*$O$2 -> 573.4320719 | J94: =(-1)*$Q$1*F93/$S$1 -> -16.48106409
B95: 0 | C95: 551.553 | D95: 489.579 | E95: 0 | H95: 347.044 | I95: =H95+(SIN((G93)*PI()/180)*$O$1)*ABS(F93)*$O$2 -> 326.1352278
B96: 18HD07 | C96: HR13 | D96: 18HD09(62) | E96: 18HD07 | F96: 0.001811862574 | G96: 198.4105015
B97: 601.294 | C97: 801.62 | D97: 451.216 | E97: 601.294 | H97: 618.0433333 | I97: =H97+(COS(G96*PI()/180)*$O$1)*ABS(F96)*$O$2 -> 546.4129967 | J97: =(-1)*$Q$1*F96/$S$1 -> -15.09885478
B98: 0 | C98: 551.553 | D98: 695.533 | E98: 0 | H98: 415.6953333 | I98: =H98+(SIN((G96)*PI()/180)*$O$1)*ABS(F96)*$O$2 -> 391.8525092
B99: 18HD07 | C99: HR13 | D99: HAH | E99: 18HD07 | F99: 0.001852960944 | G99: 197.4111407
B100: 601.294 | C100: 801.62 | D100: 470.845 | E100: 601.294 | H100: 624.5863333 | I100: =H100+(COS(G99*PI()/180)*$O$1)*ABS(F99)*$O$2 -> 550.9170715 | J100: =(-1)*$Q$1*F99/$S$1 -> -15.4413412
B101: 0 | C101: 551.553 | D101: 884.909 | E101: 0 | H101: 478.8206667 | I101: =H101+(SIN((G99)*PI()/180)*$O$1)*ABS(F99)*$O$2 -> 455.7183874
B102: 18HD07 | C102: HR13 | D102: MW125S | E102: 18HD07 | F102: 0.00153044124 | G102: 207.3382129
B103: 601.294 | C103: 801.62 | D103: 1270.577 | E103: 601.294 | H103: 891.1636667 | I103: =H103+(COS(G102*PI()/180)*$O$1)*ABS(F102)*$O$2 -> 834.5174997 | J103: =(-1)*$Q$1*F102/$S$1 -> -12.753677
B104: 0 | C104: 551.553 | D104: 498.126 | E104: 0 | H104: 349.893 | I104: =H104+(SIN((G102)*PI()/180)*$O$1)*ABS(F102)*$O$2 -> 320.6078724
B105: 18HD07 | C105: HR13 | D105: MW133S | E105: 18HD07 | F105: 0.001311626122 | G105: 219.0769838
B106: 601.294 | C106: 801.62 | D106: 2559.17 | E106: 601.294 | H106: 1320.694667 | I106: =H106+(COS(G105*PI()/180)*$O$1)*ABS(F105)*$O$2 -> 1278.269044 | J106: =(-1)*$Q$1*F105/$S$1 -> -10.93021769
B107: 0 | C107: 551.553 | D107: 830.261 | E107: 0 | H107: 460.6046667 | I107: =H107+(SIN((G105)*PI()/180)*$O$1)*ABS(F105)*$O$2 -> 426.1545873
B108: 18HD07 | C108: HAS | D108: 18HD03(57) | E108: 18HD07 | F108: 0.0023470436 | G108: 175.5347161
B109: 601.294 | C109: 296.061 | D109: 1446.736 | E109: 601.294 | H109: 781.3636667 | I109: =H109+(COS(G108*PI()/180)*$O$1)*ABS(F108)*$O$2 -> 683.8670169 | J109: =(-1)*$Q$1*F108/$S$1 -> -19.55869667
B110: 0 | C110: 1618.676 | D110: 1139.754 | E110: 0 | H110: 919.4766667 | I110: =H110+(SIN((G108)*PI()/180)*$O$1)*ABS(F108)*$O$2 -> 927.0903821
B111: 18HD07 | C111: HAS | D111: MW125S | E111: 18HD07 | F111: 0.00207162628 | G111: 173.4625168
B112: 601.294 | C112: 296.061 | D112: 1270.577 | E112: 601.294 | H112: 722.644 | I112: =H112+(COS(G111*PI()/180)*$O$1)*ABS(F111)*$O$2 -> 636.8875122 | J112: =(-1)*$Q$1*F111/$S$1 -> -17.26355233
B113: 0 | C113: 1618.676 | D113: 498.126 | E113: 0 | H113: 705.6006667 | I113: =H113+(SIN((G111)*PI()/180)*$O$1)*ABS(F111)*$O$2 -> 715.4282191
B114: 18HD07 | C114: HAS | D114: MW133S | E114: 18HD07 | F114: 0.001549957221 | G114: 167.3755491
B115: 601.294 | C115: 296.061 | D115: 2559.17 | E115: 601.294 | H115: 1152.175 | I115: =H115+(COS(G114*PI()/180)*$O$1)*ABS(F114)*$O$2 -> 1089.1548 | J115: =(-1)*$Q$1*F114/$S$1 -> -12.91631017
B116: 0 | C116: 1618.676 | D116: 830.261 | E116: 0 | H116: 816.3123333 | I116: =H116+(SIN((G114)*PI()/180)*$O$1)*ABS(F114)*$O$2 -> 830.4272572
B117: 18HD07 | C117: HAS | D117: MW132S | E117: 18HD07 | F117: 0.001940444117 | G117: 172.2582688
B118: 601.294 | C118: 296.061 | D118: 1997.736 | E118: 601.294 | H118: 965.0303333 | I118: =H118+(COS(G117*PI()/180)*$O$1)*ABS(F117)*$O$2 -> 884.9154315 | J118: =(-1)*$Q$1*F117/$S$1 -> -16.17036764
B119: 0 | C119: 1618.676 | D119: 1434.695 | E119: 0 | H119: 1017.790333 | I119: =H119+(SIN((G117)*PI()/180)*$O$1)*ABS(F117)*$O$2 -> 1028.681717
B120: 18HD07 | C120: 18HD06 | D120: 18HD08(47) | E120: 18HD07 | F120: 0.002116262796 | G120: 194.0732098
B121: 601.294 | C121: 782.774 | D121: 556.508 | E121: 601.294 | H121: 646.8586667 | I121: =H121+(COS(G120*PI()/180)*$O$1)*ABS(F120)*$O$2 -> 561.3276292 | J121: =(-1)*$Q$1*F120/$S$1 -> -17.6355233
B122: 0 | C122: 131.109 | D122: 489.579 | E122: 0 | H122: 206.896 | I122: =H122+(SIN((G120)*PI()/180)*$O$1)*ABS(F120)*$O$2 -> 185.4545989
B123: 18HD07 | C123: 18HD06 | D123: 18HD09(62) | E123: 18HD07 | F123: 0.002068940764 | G123: 197.6333411
B124: 601.294 | C124: 782.774 | D124: 451.216 | E124: 601.294 | H124: 611.7613333 | I124: =H124+(COS(G123*PI()/180)*$O$1)*ABS(F123)*$O$2 -> 529.6058892 | J124: =(-1)*$Q$1*F123/$S$1 -> -17.24117303
B125: 0 | C125: 131.109 | D125: 695.533 | E125: 0 | H125: 275.5473333 | I125: =H125+(SIN((G123)*PI()/180)*$O$1)*ABS(F123)*$O$2 -> 249.4334637
B126: 18HD07 | C126: 18HD06 | D126: HAH | E126: 18HD07 | F126: 0.002084145352 | G126: 196.4030033
B127: 601.294 | C127: 782.774 | D127: 470.845 | E127: 601.294 | H127: 618.3043333 | I127: =H127+(COS(G126*PI()/180)*$O$1)*ABS(F126)*$O$2 -> 534.9993786 | J127: =(-1)*$Q$1*F126/$S$1 -> -17.36787793
B128: 0 | C128: 131.109 | D128: 884.909 | E128: 0 | H128: 338.6726667 | I128: =H128+(SIN((G126)*PI()/180)*$O$1)*ABS(F126)*$O$2 -> 314.1499402
B129: 18HD07 | C129: 18HD08(47) | D129: 18HD03(57) | E129: 18HD07 | F129: 0.001542173877 | G129: 197.4097963
B130: 601.294 | C130: 556.508 | D130: 1446.736 | E130: 601.294 | H130: 868.1793333 | I130: =H130+(COS(G129*PI()/180)*$O$1)*ABS(F129)*$O$2 -> 806.8657652 | J130: =(-1)*$Q$1*F129/$S$1 -> -12.85144898
B131: 0 | C131: 489.579 | D131: 1139.754 | E131: 0 | H131: 543.111 | I131: =H131+(SIN((G129)*PI()/180)*$O$1)*ABS(F129)*$O$2 -> 523.884979
B132: 18HD07 | C132: 18HD08(47) | D132: MW125S | E132: 18HD07 | F132: 0.001604411266 | G132: 196.930374
B133: 601.294 | C133: 556.508 | D133: 1270.577 | E133: 601.294 | H133: 809.4596667 | I133: =H133+(COS(G132*PI()/180)*$O$1)*ABS(F132)*$O$2 -> 745.5065406 | J133: =(-1)*$Q$1*F132/$S$1 -> -13.37009389
B134: 0 | C134: 489.579 | D134: 498.126 | E134: 0 | H134: 329.235 | I134: =H134+(SIN((G132)*PI()/180)*$O$1)*ABS(F132)*$O$2 -> 309.767516
B135: 18HD07 | C135: 18HD08(47) | D135: MW133S | E135: 18HD07 | F135: 0.001261713648 | G135: 200.1749397
B136: 601.294 | C136: 556.508 | D136: 2559.17 | E136: 601.294 | H136: 1238.990667 | I136: =H136+(COS(G135*PI()/180)*$O$1)*ABS(F135)*$O$2 -> 1189.644838 | J136: =(-1)*$Q$1*F135/$S$1 -> -10.5142804
B137: 0 | C137: 489.579 | D137: 830.261 | E137: 0 | H137: 439.9466667 | I137: =H137+(SIN((G135)*PI()/180)*$O$1)*ABS(F135)*$O$2 -> 421.8154377
B138: 18HD07 | C138: 18HD08(47) | D138: MW132S | E138: 18HD07 | F138: 0.001281975707 | G138: 199.9333039
B139: 601.294 | C139: 556.508 | D139: 1997.736 | E139: 601.294 | H139: 1051.846 | I139: =H139+(COS(G138*PI()/180)*$O$1)*ABS(F138)*$O$2 -> 1001.630471 | J139: =(-1)*$Q$1*F138/$S$1 -> -10.68313089
B140: 0 | C140: 489.579 | D140: 1434.695 | E140: 0 | H140: 641.4246667 | I140: =H140+(SIN((G138)*PI()/180)*$O$1)*ABS(F138)*$O$2 -> 623.2138787
B141: 18HD07 | C141: 18HD09(62) | D141: 18HD03(57) | E141: 18HD07 | F141: 0.001499511642 | G141: 199.7159906
B142: 601.294 | C142: 451.216 | D142: 1446.736 | E142: 601.294 | H142: 833.082 | I142: =H142+(COS(G141*PI()/180)*$O$1)*ABS(F141)*$O$2 -> 774.2651286 | J142: =(-1)*$Q$1*F141/$S$1 -> -12.49593035
B143: 0 | C143: 695.533 | D143: 1139.754 | E143: 0 | H143: 611.7623333 | I143: =H143+(SIN((G141)*PI()/180)*$O$1)*ABS(F141)*$O$2 -> 590.684323
B144: 18HD07 | C144: 18HD09(62) | D144: MW125S | E144: 18HD07 | F144: 0.001582128888 | G144: 199.3201628
B145: 601.294 | C145: 451.216 | D145: 1270.577 | E145: 601.294 | H145: 774.3623333 | I145: =H145+(COS(G144*PI()/180)*$O$1)*ABS(F144)*$O$2 -> 712.1527234 | J145: =(-1)*$Q$1*F144/$S$1 -> -13.1844074
B146: 0 | C146: 695.533 | D146: 498.126 | E146: 0 | H146: 397.8863333 | I146: =H146+(SIN((G144)*PI()/180)*$O$1)*ABS(F144)*$O$2 -> 376.0762579
B147: 18HD07 | C147: 18HD09(62) | D147: MW133S | E147: 18HD07 | F147: 0.001260842118 | G147: 201.1540486
B148: 601.294 | C148: 451.216 | D148: 2559.17 | E148: 601.294 | H148: 1203.893333 | I148: =H148+(COS(G147*PI()/180)*$O$1)*ABS(F147)*$O$2 -> 1154.898399 | J148: =(-1)*$Q$1*F147/$S$1 -> -10.50701765
B149: 0 | C149: 695.533 | D149: 830.261 | E149: 0 | H149: 508.598 | I149: =H149+(SIN((G147)*PI()/180)*$O$1)*ABS(F147)*$O$2 -> 489.6393093
B150: 18HD07 | C150: 18HD09(62) | D150: MW132S | E150: 18HD07 | F150: 0.001269819586 | G150: 201.0900578
B151: 601.294 | C151: 451.216 | D151: 1997.736 | E151: 601.294 | H151: 1016.748667 | I151: =H151+(COS(G150*PI()/180)*$O$1)*ABS(F150)*$O$2 -> 967.3835843 | J151: =(-1)*$Q$1*F150/$S$1 -> -10.58182989
B152: 0 | C152: 695.533 | D152: 1434.695 | E152: 0 | H152: 710.076 | I152: =H152+(SIN((G150)*PI()/180)*$O$1)*ABS(F150)*$O$2 -> 691.0374408
B153: 18HD07 | C153: HAH | D153: 18HD03(57) | E153: 18HD07 | F153: 0.00150260039 | G153: 199.5399089
B154: 601.294 | C154: 470.845 | D154: 1446.736 | E154: 601.294 | H154: 839.625 | I154: =H154+(COS(G153*PI()/180)*$O$1)*ABS(F153)*$O$2 -> 780.6223434 | J154: =(-1)*$Q$1*F153/$S$1 -> -12.52166991
B155: 0 | C155: 884.909 | D155: 1139.754 | E155: 0 | H155: 674.8876667 | I155: =H155+(SIN((G153)*PI()/180)*$O$1)*ABS(F153)*$O$2 -> 653.9474673
B156: 18HD07 | C156: HAH | D156: MW125S | E156: 18HD07 | F156: 0.001585352571 | G156: 198.9508092
B157: 601.294 | C157: 470.845 | D157: 1270.577 | E157: 601.294 | H157: 780.9053333 | I157: =H157+(COS(G156*PI()/180)*$O$1)*ABS(F156)*$O$2 -> 718.42938 | J157: =(-1)*$Q$1*F156/$S$1 -> -13.21127142
B158: 0 | C158: 884.909 | D158: 498.126 | E158: 0 | H158: 461.0116667 | I158: =H158+(SIN((G156)*PI()/180)*$O$1)*ABS(F156)*$O$2 -> 439.5594507
B159: 18HD07 | C159: HAH | D159: MW133S | E159: 18HD07 | F159: 0.001260507508 | G159: 201.7183202
B160: 601.294 | C160: 470.845 | D160: 2559.17 | E160: 601.294 | H160: 1210.436333 | I160: =H160+(COS(G159*PI()/180)*$O$1)*ABS(F159)*$O$2 -> 1161.643438 | J160: =(-1)*$Q$1*F159/$S$1 -> -10.50422924
B161: 0 | C161: 884.909 | D161: 830.261 | E161: 0 | H161: 571.7233333 | I161: =H161+(SIN((G159)*PI()/180)*$O$1)*ABS(F159)*$O$2 -> 552.2882075
B162: 18HD07 | C162: HAH | D162: MW132S | E162: 18HD07 | F162: 0.001263885381 | G162: 201.6820331
B163: 601.294 | C163: 470.845 | D163: 1997.736 | E163: 601.294 | H163: 1023.291667 | I163: =H163+(COS(G162*PI()/180)*$O$1)*ABS(F162)*$O$2 -> 974.355685 | J163: =(-1)*$Q$1*F162/$S$1 -> -10.53237817
B164: 0 | C164: 884.909 | D164: 1434.695 | E164: 0 | H164: 773.2013333 | I164: =H164+(SIN((G162)*PI()/180)*$O$1)*ABS(F162)*$O$2 -> 753.7451144
B165: 18HD07 | C165: 18HD03(57) | D165: MW125S | E165: 18HD07 | F165: 0.001659772029 | G165: 192.1513118
B166: 601.294 | C166: 1446.736 | D166: 1270.577 | E166: 601.294 | H166: 1106.202333 | I166: =H166+(COS(G165*PI()/180)*$O$1)*ABS(F165)*$O$2 -> 1038.594624 | J166: =(-1)*$Q$1*F165/$S$1 -> -13.83143358
B167: 0 | C167: 1139.754 | D167: 498.126 | E167: 0 | H167: 545.96 | I167: =H167+(SIN((G165)*PI()/180)*$O$1)*ABS(F165)*$O$2 -> 531.4028213
B168: 18HD07 | C168: 18HD03(57) | D168: MW133S | E168: 18HD07 | F168: 0.001299587105 | G168: 217.1217467
B169: 601.294 | C169: 1446.736 | D169: 2559.17 | E169: 601.294 | H169: 1535.733333 | I169: =H169+(COS(G168*PI()/180)*$O$1)*ABS(F168)*$O$2 -> 1492.556993 | J169: =(-1)*$Q$1*F168/$S$1 -> -10.82989254
B170: 0 | C170: 1139.754 | D170: 830.261 | E170: 0 | H170: 656.6716667 | I170: =H170+(SIN((G168)*PI()/180)*$O$1)*ABS(F168)*$O$2 -> 623.9918882
B171: 18HD07 | C171: MW133S | D171: MW132S | E171: 18HD07 | F171: 0.001260370861 | G171: 202.0418611
B172: 601.294 | C172: 2559.17 | D172: 1997.736 | E172: 601.294 | H172: 1719.4 | I172: =H172+(COS(G171*PI()/180)*$O$1)*ABS(F171)*$O$2 -> 1670.722906 | J172: =(-1)*$Q$1*F171/$S$1 -> -10.50309051
B173: 0 | C173: 830.261 | D173: 1434.695 | E173: 0 | H173: 754.9853333 | I173: =H173+(SIN((G171)*PI()/180)*$O$1)*ABS(F171)*$O$2 -> 735.2771291
B174: 18HD05(65) | C174: MW108S | D174: HR6 | E174: 18HD05(65) | F174: 0.001498667908 | G174: 186.4121411
B175: 235.605 | C175: 0 | D175: 964.229 | E175: 235.605 | H175: 399.9446667 | I175: =H175+(COS(G174*PI()/180)*$O$1)*ABS(F174)*$O$2 -> 337.890806 | J175: =(-1)*$Q$1*F174/$S$1 -> -12.48889924
B176: 213.953 | C176: 876.464 | D176: 243.024 | E176: 213.953 | H176: 444.4803333 | I176: =H176+(SIN((G174)*PI()/180)*$O$1)*ABS(F174)*$O$2 -> 437.5065626
B177: 18HD05(65) | C177: MW108S | D177: HR13 | E177: 18HD05(65) | F177: 0.001635353585 | G177: 187.5297526
B178: 235.605 | C178: 0 | D178: 801.62 | E178: 235.605 | H178: 345.7416667 | I178: =H178+(COS(G177*PI()/180)*$O$1)*ABS(F177)*$O$2 -> 278.1895064 | J178: =(-1)*$Q$1*F177/$S$1 -> -13.62794654
B179: 213.953 | C179: 876.464 | D179: 551.553 | E179: 213.953 | H179: 547.3233333 | I179: =H179+(SIN((G177)*PI()/180)*$O$1)*ABS(F177)*$O$2 -> 538.3942337
B180: 18HD05(65) | C180: MW108S | D180: HAS | E180: 18HD05(65) | F180: 0.0005613856916 | G180: 57.021013
B181: 235.605 | C181: 0 | D181: 296.061 | E181: 235.605 | H181: 177.222 | I181: =H181+(COS(G180*PI()/180)*$O$1)*ABS(F180)*$O$2 -> 189.9544946 | J181: =(-1)*$Q$1*F180/$S$1 -> -4.678214096
B182: 213.953 | C182: 876.464 | D182: 1618.676 | E182: 213.953 | H182: 903.031 | I182: =H182+(SIN((G180)*PI()/180)*$O$1)*ABS(F180)*$O$2 -> 922.6530733
B183: 18HD05(65) | C183: MW108S | D183: 18HD06 | E183: 18HD05(65) | F183: 0.001436799868 | G183: 185.8344023
B184: 235.605 | C184: 0 | D184: 782.774 | E184: 235.605 | H184: 339.4596667 | I184: =H184+(COS(G183*PI()/180)*$O$1)*ABS(F183)*$O$2 -> 279.9031237 | J184: =(-1)*$Q$1*F183/$S$1 -> -11.97333223
B185: 213.953 | C185: 876.464 | D185: 131.109 | E185: 213.953 | H185: 407.1753333 | I185: =H185+(SIN((G183)*PI()/180)*$O$1)*ABS(F183)*$O$2 -> 401.0896694
B186: 18HD05(65) | C186: MW108S | D186: 18HD08(47) | E186: 18HD05(65) | F186: 0.001414804346 | G186: 185.6164611
B187: 235.605 | C187: 0 | D187: 556.508 | E187: 235.605 | H187: 264.0376667 | I187: =H187+(COS(G186*PI()/180)*$O$1)*ABS(F186)*$O$2 -> 205.3704864 | J187: =(-1)*$Q$1*F186/$S$1 -> -11.79003621
B188: 213.953 | C188: 876.464 | D188: 489.579 | E188: 213.953 | H188: 526.6653333 | I188: =H188+(SIN((G186)*PI()/180)*$O$1)*ABS(F186)*$O$2 -> 520.8959483
B189: 18HD05(65) | C189: MW108S | D189: 18HD09(62) | E189: 18HD05(65) | F189: 0.00168163328 | G189: 187.8660555
B190: 235.605 | C190: 0 | D190: 451.216 | E190: 235.605 | H190: 228.9403333 | I190: =H190+(COS(G189*PI()/180)*$O$1)*ABS(F189)*$O$2 -> 159.5315701 | J190: =(-1)*$Q$1*F189/$S$1 -> -14.01361067
B191: 213.953 | C191: 876.464 | D191: 695.533 | E191: 213.953 | H191: 595.3166667 | I191: =H191+(SIN((G189)*PI()/180)*$O$1)*ABS(F189)*$O$2 -> 585.7273139
B192: 18HD05(65) | C192: MW108S | D192: HAH | E192: 18HD05(65) | F192: 0.001777628183 | G192: 188.5066723
B193: 235.605 | C193: 0 | D193: 470.845 | E193: 235.605 | H193: 235.4833333 | I193: =H193+(COS(G192*PI()/180)*$O$1)*ABS(F192)*$O$2 -> 162.2303391 | J193: =(-1)*$Q$1*F192/$S$1 -> -14.81356819
B194: 213.953 | C194: 876.464 | D194: 884.909 | E194: 213.953 | H194: 658.442 | I194: =H194+(SIN((G192)*PI()/180)*$O$1)*ABS(F192)*$O$2 -> 647.4855454
B195: 18HD05(65) | C195: MW108S | D195: 18HD03(57) | E195: 18HD05(65) | F195: 0.001593636104 | G195: 187.2094716
B196: 235.605 | C196: 0 | D196: 1446.736 | E196: 235.605 | H196: 560.7803333 | I196: =H196+(COS(G195*PI()/180)*$O$1)*ABS(F195)*$O$2 -> 494.9038014 | J196: =(-1)*$Q$1*F195/$S$1 -> -13.28030086
B197: 213.953 | C197: 876.464 | D197: 1139.754 | E197: 213.953 | H197: 743.3903333 | I197: =H197+(SIN((G195)*PI()/180)*$O$1)*ABS(F195)*$O$2 -> 735.0571278
B198: 18HD05(65) | C198: MW108S | D198: MW125S | E198: 18HD05(65) | F198: 0.001499633697 | G198: 186.4207715
B199: 235.605 | C199: 0 | D199: 1270.577 | E199: 235.605 | H199: 502.0606667 | I199: =H199+(COS(G198*PI()/180)*$O$1)*ABS(F198)*$O$2 -> 439.9678684 | J199: =(-1)*$Q$1*F198/$S$1 -> -12.49694748
B200: 213.953 | C200: 876.464 | D200: 498.126 | E200: 213.953 | H200: 529.5143333 | I200: =H200+(SIN((G198)*PI()/180)*$O$1)*ABS(F198)*$O$2 -> 522.5267154
... 624 more rows

Sheet Equations

Sheet ExampleData
A1: Data from Ferrey et al., 2000
A2: Well ID | B2: x | C2: y | D2: water elevation
A3: MW-6S | B3: 0 | C3: 10 | D3: 890.47
A4: MW-4S | B4: 75 | C4: -20 | D4: 890.13
A5: MW-8S | B5: 205 | C5: -160 | D5: 889.48
A6: MW-1S | B6: 290 | C6: 220 | D6: 889.479
A7: MW-7S | B7: 425 | C7: -65 | D7: 888.64
A8: MW-3S | B8: 420 | C8: 7 | D8: 888.4795
A9: MW-5S | B9: 670 | C9: 0 | D9: 887.72
A12: Data from Schillig et al, 2015
A13: Well ID | B13: x | C13: y | D13: water elevation
A14: WO35 | B14: 94.03708 | C14: 76.32148 | D14: 297.837
A15: WO74 | B15: 170.15215 | C15: 40.30501 | D15: 297.662
A16: WO77 | B16: 161.67 | C16: 52.287 | D16: 297.704
A17: WO78 | B17: 158.24 | C17: 48.627 | D17: 297.697
A18: WO79 | B18: 154.84 | C18: 44.937 | D18: 297.696
A19: WO80 | B19: 151.4 | C19: 41.087 | D19: 297.699
A20: WO64 | B20: 0 | C20: 77.397 | D20: 297.978
A21: WO75S | B21: 131.36044 | C21: 0 | D21: 297.745
A24: Skuldeleve data
A25: Well | B25: x | C25: y | D25: z
A26: W12 | B26: 75 | C26: 100 | D26: 4.46
A27: W11 | B27: 60 | C27: 98 | D27: 4.41
A28: W13 | B28: 75 | C28: 93 | D28: 4.45
A29: W5 | B29: 34 | C29: 93 | D29: 4.55
A30: W1 | B30: 2 | C30: 91 | D30: 4.53
A31: W16 | B31: 79 | C31: 85 | D31: 4.47
A32: W14 | B32: 68 | C32: 81 | D32: 4.34
A33: W2 | B33: 22.5 | C33: 74 | D33: 4.45
A34: W3 | B34: 26 | C34: 71 | D34: 4.44
A35: W15 | B35: 72 | C35: 64 | D35: 4.29
A36: W6 | B36: 34 | C36: 58 | D36: 4.36
A37: W9 | B37: 53 | C37: 48 | D37: 4.26
A38: W10 | B38: 55.5 | C38: 42.5 | D38: 4.26
A39: W4 | B39: 24 | C39: 40 | D39: 4.14
A40: W17 | B40: 78 | C40: 27.5 | D40: 4.07
A41: W18 | B41: 75 | C41: 17 | D41: 4.12
A42: W8 | B42: 56 | C42: 2.5 | D42: 4.03
A43: W7 | B43: 37.5 | C43: 0 | D43: 4.01
